Workbook

Sheet Orçamento
O3: UNIDADE ESCOLAR | V3: CÓDIGO INEP
O4: COLÉGIO ESTADUAL CARLOS DRUMOND DE ANDRADE | V4: 52092127
A6: Nmax | O6: OBRA | S6: DATA | V6: CIDADE
A7: =MAX($C$18:$C$584) -> 4 | O7: REFORMA | S7: 2020-09-02 | V7: NOVO GAMA
O9: CRE | R9: ENDEREÇO | V9: REFERÊNCIA AGETOP
O10: NOVO GAMA | R10: AV. SEBASTIÃO VARGAS FILHO QD 08 S/N VALE DO PEDREGA, VALE DO PEDREGAL, CEP:72860-785 | V10: ABR/19 | W10: ONERADA
O12: ÁREA EXISTENTE (M²) | R12: ÁREA A CONSTRUIR (M²) | S12: ÁREA TOTAL CONSTRUÍDA (M²) | V12: REFERÊNCIA SINAPI
O13: 2578.45 | R13: 89.67 | S13: 2668.12 | V13: SET/19 | W13: ONERADA
L15: FILTRO | O15: PLANILHA ORÇAMENTÁRIA
A16: Nível E | B16: Save Nivel | C16: Nível C | D16: Altura | E16: n1 | F16: n2 | G16: n3 | H16: n4 | I16: n5 | J16: Czero | K16: Cnível | L16: ↓ | M16: Nível | N16: Nível Corrigido | O16: ITEM | P16: TABELA | Q16: CODIGO | R16: DESCRIÇÃO DOS SERVIÇOS | S16: UNID | T16: QUANT | U16: MAT | V16: MO | W16: T.SERVIÇO | X16: OBSERVAÇÕES¹
A17: =CHOOSE(1+LOG(1+2*(ORÇAMENTO.Nivel="Nível 1")+4*(ORÇAMENTO.Nivel="Nível 2")+8*(ORÇAMENTO.Nivel="Nível 3")+16*(ORÇAMENTO.Nivel="Nível 4")+32*(ORÇAMENTO.Nivel="Serviço"),2),0,1,2,3,4,"S") -> S | B17: =IF(OR(C17="s",C17=0),OFFSET(B17,-1,0),C17) -> Save Nivel | C17: =IF(OFFSET(C17,-1,0)="L",1,IF(OFFSET(C17,-1,0)=1,2,IF(OR(A17="s",A17=0),"S",IF(AND(OFFSET(C17,-1,0)=2,A17=4),3,IF(AND(OR(OFFSET(C17,-1,0)="s",OFFSET(C17,-1,0)=0),A17<>"s",A17>OFFSET(B17,-1,0)),OFFSET(B17,-1,0),A17))))) -> S | D17: =IF(OR(C17="S",C17=0),0,IF(ISERROR(K17),J17,SMALL(J17:K17,1))) -> 0 | E17: =IF($C17=1,OFFSET(E17,-1,0)+1,OFFSET(E17,-1,0)) -> n1 | F17: =IF($C17=1,0,IF($C17=2,OFFSET(F17,-1,0)+1,OFFSET(F17,-1,0))) -> n2 | G17: =IF(AND($C17<=2,$C17<>0),0,IF($C17=3,OFFSET(G17,-1,0)+1,OFFSET(G17,-1,0))) -> n3 | H17: =IF(AND($C17<=3,$C17<>0),0,IF($C17=4,OFFSET(H17,-1,0)+1,OFFSET(H17,-1,0))) -> n4 | I17: =IF(AND($C17<=4,$C17<>0),0,IF(AND($C17="S",$W17>0),OFFSET(I17,-1,0)+1,OFFSET(I17,-1,0))) -> n5 | J17: =IF(OR($C17="S",$C17=0),0,MATCH(0,OFFSET($D17,1,$C17,ROW($C$584)-ROW($C17)),0)) -> 0 | K17: =IF(OR($C17="S",$C17=0),0,MATCH(OFFSET($D17,0,$C17)+1,OFFSET($D17,1,$C17,ROW($C$584)-ROW($C17)),0)) -> 0 | M17: Serviço | N17: Serviço | O17: - | P17: AGETOP | R17: (sem código) | S17: - | U17: 0 | V17: 0 | W17: 0
A18: 0 | C18: L | D18: =COUNTA(OFFSET(D18,1,0):D$584) -> 565 | E18: =LEFT(O19,1)-1 -> 0 | L18: F | M18: LOTE | N18: LOTE | O18: REFORMA - COLÉGIO ESTADUAL CARLOS DRUMOND DE ANDRADE | W18: 538780.87
A19: 1 | B19: =IF(OR(C19="s",C19=0),OFFSET(B19,-1,0),C19) -> 1 | C19: =IF(OFFSET(C19,-1,0)="L",1,IF(OFFSET(C19,-1,0)=1,2,IF(OR(A19="s",A19=0),"S",IF(AND(OFFSET(C19,-1,0)=2,A19=4),3,IF(AND(OR(OFFSET(C19,-1,0)="s",OFFSET(C19,-1,0)=0),A19<>"s",A19>OFFSET(B19,-1,0)),OFFSET(B19,-1,0),A19))))) -> 1 | D19: =IF(OR(C19="S",C19=0),0,IF(ISERROR(K19),J19,SMALL(J19:K19,1))) -> 374 | E19: =IF($C19=1,OFFSET(E19,-1,0)+1,OFFSET(E19,-1,0)) -> 1 | F19: =IF($C19=1,0,IF($C19=2,OFFSET(F19,-1,0)+1,OFFSET(F19,-1,0))) -> 0 | G19: =IF(AND($C19<=2,$C19<>0),0,IF($C19=3,OFFSET(G19,-1,0)+1,OFFSET(G19,-1,0))) -> 0 | H19: =IF(AND($C19<=3,$C19<>0),0,IF($C19=4,OFFSET(H19,-1,0)+1,OFFSET(H19,-1,0))) -> 0 | I19: 0 | J19: =IF(OR($C19="S",$C19=0),0,MATCH(0,OFFSET($D19,1,$C19,ROW($C$584)-ROW($C19)),0)) -> 565 | K19: =IF(OR($C19="S",$C19=0),0,MATCH(OFFSET($D19,0,$C19)+1,OFFSET($D19,1,$C19,ROW($C$584)-ROW($C19)),0)) -> 374 | L19: F | M19: Nível 1 | N19: Nível 1 | O19: 1. | P19: AGETOP | R19: REFORMA
A20: 2 | B20: =IF(OR(C20="s",C20=0),OFFSET(B20,-1,0),C20) -> 2 | C20: =IF(OFFSET(C20,-1,0)="L",1,IF(OFFSET(C20,-1,0)=1,2,IF(OR(A20="s",A20=0),"S",IF(AND(OFFSET(C20,-1,0)=2,A20=4),3,IF(AND(OR(OFFSET(C20,-1,0)="s",OFFSET(C20,-1,0)=0),A20<>"s",A20>OFFSET(B20,-1,0)),OFFSET(B20,-1,0),A20))))) -> 2 | D20: =IF(OR(C20="S",C20=0),0,IF(ISERROR(K20),J20,SMALL(J20:K20,1))) -> 31 | E20: =IF($C20=1,OFFSET(E20,-1,0)+1,OFFSET(E20,-1,0)) -> 1 | F20: =IF($C20=1,0,IF($C20=2,OFFSET(F20,-1,0)+1,OFFSET(F20,-1,0))) -> 1 | G20: =IF(AND($C20<=2,$C20<>0),0,IF($C20=3,OFFSET(G20,-1,0)+1,OFFSET(G20,-1,0))) -> 0 | H20: =IF(AND($C20<=3,$C20<>0),0,IF($C20=4,OFFSET(H20,-1,0)+1,OFFSET(H20,-1,0))) -> 0 | I20: 0 | J20: 373 | K20: 31 | L20: F | M20: Nível 2 | N20: Nível 2 | O20: 1.1. | P20: AGETOP | R20: SERVIÇOS PRELIMINARES
A21: =CHOOSE(1+LOG(1+2*(ORÇAMENTO.Nivel="Nível 1")+4*(ORÇAMENTO.Nivel="Nível 2")+8*(ORÇAMENTO.Nivel="Nível 3")+16*(ORÇAMENTO.Nivel="Nível 4")+32*(ORÇAMENTO.Nivel="Serviço"),2),0,1,2,3,4,"S") -> 3 | B21: =IF(OR(C21="s",C21=0),OFFSET(B21,-1,0),C21) -> 3 | C21: =IF(OFFSET(C21,-1,0)="L",1,IF(OFFSET(C21,-1,0)=1,2,IF(OR(A21="s",A21=0),"S",IF(AND(OFFSET(C21,-1,0)=2,A21=4),3,IF(AND(OR(OFFSET(C21,-1,0)="s",OFFSET(C21,-1,0)=0),A21<>"s",A21>OFFSET(B21,-1,0)),OFFSET(B21,-1,0),A21))))) -> 3 | D21: =IF(OR(C21="S",C21=0),0,IF(ISERROR(K21),J21,SMALL(J21:K21,1))) -> 2 | E21: =IF($C21=1,OFFSET(E21,-1,0)+1,OFFSET(E21,-1,0)) -> 1 | F21: =IF($C21=1,0,IF($C21=2,OFFSET(F21,-1,0)+1,OFFSET(F21,-1,0))) -> 1 | G21: =IF(AND($C21<=2,$C21<>0),0,IF($C21=3,OFFSET(G21,-1,0)+1,OFFSET(G21,-1,0))) -> 1 | H21: =IF(AND($C21<=3,$C21<>0),0,IF($C21=4,OFFSET(H21,-1,0)+1,OFFSET(H21,-1,0))) -> 0 | I21: =IF(AND($C21<=4,$C21<>0),0,IF(AND($C21="S",$W21>0),OFFSET(I21,-1,0)+1,OFFSET(I21,-1,0))) -> 0 | J21: 30 | K21: 2 | L21: F | M21: Nível 3 | N21: Nível 3 | O21: 1.1.1. | P21: SINAPI | R21: PERGOLADO | S21: -
A22: S | B22: 3 | C22: S | D22: 0 | E22: 1 | F22: 1 | G22: 1 | H22: 0 | I22: 0 | J22: 0 | K22: 0 | L22: F | M22: Serviço | N22: Serviço | O22: 1.1.1.0.1. | P22: AGETOP | Q22: 20121 | R22: DEM. MANUAL EM CONCR.SIMPLES C/TR.ATE CB.E CARGA (O.C.) | S22: m3 | T22: 0.12
A23: 3 | B23: 3 | C23: 3 | D23: 7 | E23: 1 | F23: 1 | G23: 2 | H23: 0 | I23: 0 | J23: 28 | K23: 7 | L23: F | M23: Nível 3 | N23: Nível 3 | O23: 1.1.2. | P23: SINAPI | R23: COPA | S23: -
A24: S | B24: 3 | C24: S | D24: 0 | E24: 1 | F24: 1 | G24: 2 | H24: 0 | I24: 0 | J24: 0 | K24: 0 | L24: F | M24: Serviço | N24: Serviço | O24: 1.1.2.0.1. | P24: AGETOP | Q24: 20118 | R24: DEM.ALVEN.TIJOLO S/REAP. C/TR.ATE CB. E CARGA | S24: m3 | T24: 3.7995
A25: S | B25: 3 | C25: S | D25: 0 | E25: 1 | F25: 1 | G25: 2 | H25: 0 | I25: 0 | J25: 0 | K25: 0 | L25: F | M25: Serviço | N25: Serviço | O25: 1.1.2.0.2. | P25: AGETOP | Q25: 20112 | R25: DEM.PISO CERAM. INCLUS. RETIRADA DE CONTRAPISO SOBRE LASTRO CONC.C/TR.CB.E CARGA | S25: m2 | T25: 9.84
A26: S | B26: 3 | C26: S | D26: 0 | E26: 1 | F26: 1 | G26: 2 | H26: 0 | I26: 0 | J26: 0 | K26: 0 | L26: F | M26: Serviço | N26: Serviço | O26: 1.1.2.0.3. | P26: AGETOP | Q26: 20139 | R26: DEMOLIÇAO DE BANCADAS C/ TRANSP. ATÉ CB. E CARGA | S26: m2 | T26: 1.63
A27: S | B27: 3 | C27: S | D27: 0 | E27: 1 | F27: 1 | G27: 2 | H27: 0 | I27: 0 | J27: 0 | K27: 0 | L27: F | M27: Serviço | N27: Serviço | O27: 1.1.2.0.4. | P27: AGETOP | Q27: 20163 | R27: DEMOLIÇÃO DAS INSTALAÇÕES HIDROSANITÁRIAS E AFINS C/ TRANSP. ATÉ CB. E CARGA | S27: H | T27: 1
A28: S | B28: 3 | C28: S | D28: 0 | E28: 1 | F28: 1 | G28: 2 | H28: 0 | I28: 0 | J28: 0 | K28: 0 | L28: F | M28: Serviço | N28: Serviço | O28: 1.1.2.0.5. | P28: AGETOP | Q28: 20102 | R28: DEMOLICAO-COBERTURA TELHA FIBROCIMENTO/FIBRA DE VIDRO/SIMILARES C/ TRANSP. ATÉ CB. E CARGA | S28: m2 | T28: 11.6
A29: S | B29: 3 | C29: S | D29: 0 | E29: 1 | F29: 1 | G29: 2 | H29: 0 | I29: 0 | J29: 0 | K29: 0 | L29: F | M29: Serviço | N29: Serviço | O29: 1.1.2.0.6. | P29: AGETOP | Q29: 20103 | R29: DEMOLIÇÃO ESTRUTURA EM MADEIRA TELHADO C/ TRANSP. ATÉ CB. E CARGA | S29: m2 | T29: 11.6
A30: 3 | B30: 3 | C30: 3 | D30: 4 | E30: 1 | F30: 1 | G30: 3 | H30: 0 | I30: 0 | J30: 21 | K30: 4 | L30: F | M30: Nível 3 | N30: Nível 3 | O30: 1.1.3. | P30: SINAPI | R30: SANITÁRIO FEMININO | S30: -
A31: S | B31: 3 | C31: S | D31: 0 | E31: 1 | F31: 1 | G31: 3 | H31: 0 | I31: 0 | J31: 0 | K31: 0 | L31: F | M31: Serviço | N31: Serviço | O31: 1.1.3.0.1. | P31: AGETOP | Q31: 20106 | R31: RETIRADA DE JANELAS OU PORTAIS C/ TRANSP. ATÉ CB. E CARGA | S31: m2 | T31: 3.6
A32: S | B32: 3 | C32: S | D32: 0 | E32: 1 | F32: 1 | G32: 3 | H32: 0 | I32: 0 | J32: 0 | K32: 0 | L32: F | M32: Serviço | N32: Serviço | O32: 1.1.3.0.2. | P32: AGETOP | Q32: 20163 | R32: DEMOLIÇÃO DAS INSTALAÇÕES HIDROSANITÁRIAS E AFINS C/ TRANSP. ATÉ CB. E CARGA | S32: H | T32: 1
A33: S | B33: 3 | C33: S | D33: 0 | E33: 1 | F33: 1 | G33: 3 | H33: 0 | I33: 0 | J33: 0 | K33: 0 | L33: F | M33: Serviço | N33: Serviço | O33: 1.1.3.0.3. | P33: AGETOP | Q33: 20115 | R33: DEMOLIÇÃO DE REVESTIMENTOS COM AZULEJOS C/TRANSP.ATE CB. E CARGA | S33: m2 | T33: 1
A34: 3 | B34: 3 | C34: 3 | D34: 3 | E34: 1 | F34: 1 | G34: 4 | H34: 0 | I34: 0 | J34: 17 | K34: 3 | L34: F | M34: Nível 3 | N34: Nível 3 | O34: 1.1.4. | P34: SINAPI | R34: SANITÁRIO MASCULINO | S34: -
A35: S | B35: 3 | C35: S | D35: 0 | E35: 1 | F35: 1 | G35: 4 | H35: 0 | I35: 0 | J35: 0 | K35: 0 | L35: F | M35: Serviço | N35: Serviço | O35: 1.1.4.0.1. | P35: AGETOP | Q35: 20106 | R35: RETIRADA DE JANELAS OU PORTAIS C/ TRANSP. ATÉ CB. E CARGA | S35: m2 | T35: 3.6
A36: S | B36: 3 | C36: S | D36: 0 | E36: 1 | F36: 1 | G36: 4 | H36: 0 | I36: 0 | J36: 0 | K36: 0 | L36: F | M36: Serviço | N36: Serviço | O36: 1.1.4.0.2. | P36: AGETOP | Q36: 20163 | R36: DEMOLIÇÃO DAS INSTALAÇÕES HIDROSANITÁRIAS E AFINS C/ TRANSP. ATÉ CB. E CARGA | S36: H | T36: 1
A37: 3 | B37: 3 | C37: 3 | D37: 4 | E37: 1 | F37: 1 | G37: 5 | H37: 0 | I37: 0 | J37: 14 | K37: 4 | L37: F | M37: Nível 3 | N37: Nível 3 | O37: 1.1.5. | P37: SINAPI | R37: ACESSIBILIDADE | S37: -
A38: S | B38: 3 | C38: S | D38: 0 | E38: 1 | F38: 1 | G38: 5 | H38: 0 | I38: 0 | J38: 0 | K38: 0 | L38: F | M38: Serviço | N38: Serviço | O38: 1.1.5.0.1. | P38: AGETOP | Q38: 20106 | R38: RETIRADA DE JANELAS OU PORTAIS C/ TRANSP. ATÉ CB. E CARGA | S38: m2 | T38: 18.64
A39: S | B39: 3 | C39: S | D39: 0 | E39: 1 | F39: 1 | G39: 5 | H39: 0 | I39: 0 | J39: 0 | K39: 0 | L39: F | M39: Serviço | N39: Serviço | O39: 1.1.5.0.2. | P39: AGETOP | Q39: 20118 | R39: DEM.ALVEN.TIJOLO S/REAP. C/TR.ATE CB. E CARGA | S39: m3 | T39: 0.183
A40: S | B40: 3 | C40: S | D40: 0 | E40: 1 | F40: 1 | G40: 5 | H40: 0 | I40: 0 | J40: 0 | K40: 0 | L40: F | M40: Serviço | N40: Serviço | O40: 1.1.5.0.3. | P40: AGETOP | Q40: 67010 | R40: ESCARIFICAÇÃO MANUAL, CORTE DE CONCRETO ATÉ 3CM DE PROFUNDIDADE | S40: m3 | T40: 0.7841
A41: 3 | B41: 3 | C41: 3 | D41: 3 | E41: 1 | F41: 1 | G41: 6 | H41: 0 | I41: 0 | J41: 10 | K41: 3 | L41: F | M41: Nível 3 | N41: Nível 3 | O41: 1.1.6. | P41: SINAPI | R41: TODO COLÉGIO | S41: -
A42: S | B42: 3 | C42: S | D42: 0 | E42: 1 | F42: 1 | G42: 6 | H42: 0 | I42: 0 | J42: 0 | K42: 0 | L42: F | M42: Serviço | N42: Serviço | O42: 1.1.6.0.1. | P42: AGETOP | Q42: 20118 | R42: DEM.ALVEN.TIJOLO S/REAP. C/TR.ATE CB. E CARGA | S42: m3 | T42: 1.3515
A43: S | B43: 3 | C43: S | D43: 0 | E43: 1 | F43: 1 | G43: 6 | H43: 0 | I43: 0 | J43: 0 | K43: 0 | L43: F | M43: Serviço | N43: Serviço | O43: 1.1.6.0.2. | P43: AGETOP | Q43: 260104 | R43: REMOCAO DE PINTURA ANTIGA A LATEX | S43: m2 | T43: 1495.81
A44: 3 | B44: 3 | C44: 3 | D44: 5 | E44: 1 | F44: 1 | G44: 7 | H44: 0 | I44: 0 | J44: 7 | K44: 5 | L44: F | M44: Nível 3 | N44: Nível 3 | O44: 1.1.7. | P44: AGETOP | R44: IMPLANTAÇÃO | S44: -
A45: S | B45: 3 | C45: S | D45: 0 | E45: 1 | F45: 1 | G45: 7 | H45: 0 | I45: 0 | J45: 0 | K45: 0 | L45: F | M45: Serviço | N45: Serviço | O45: 1.1.7.0.1. | P45: SINAPI | Q45: 98534 | R45: PODA EM ALTURA DE ÁRVORE COM DIÂMETRO DE TRONCO MAIOR OU IGUAL A 0,40 M E MENOR QUE 0,60 M.AF_05/2018 | S45: UN | T45: 1
A46: S | B46: 3 | C46: S | D46: 0 | E46: 1 | F46: 1 | G46: 7 | H46: 0 | I46: 0 | J46: 0 | K46: 0 | L46: F | M46: Serviço | N46: Serviço | O46: 1.1.7.0.2. | P46: SINAPI | Q46: 98530 | R46: CORTE RASO E RECORTE DE ÁRVORE COM DIÂMETRO DE TRONCO MAIOR OU IGUAL A 0,40 M E MENOR QUE 0,60 M.AF_05/2018 | S46: UN | T46: 1
A47: S | B47: 3 | C47: S | D47: 0 | E47: 1 | F47: 1 | G47: 7 | H47: 0 | I47: 0 | J47: 0 | K47: 0 | L47: F | M47: Serviço | N47: Serviço | O47: 1.1.7.0.3. | P47: SINAPI | Q47: 98527 | R47: REMOÇÃO DE RAÍZES REMANESCENTES DE TRONCO DE ÁRVORE COM DIÂMETRO MAIOR OU IGUAL A 0,40 M E MENOR QUE 0,60 M.AF_05/2018 | S47: UN | T47: 1
A48: S | B48: 3 | C48: S | D48: 0 | E48: 1 | F48: 1 | G48: 7 | H48: 0 | I48: 0 | J48: 0 | K48: 0 | L48: F | M48: Serviço | N48: Serviço | O48: 1.1.7.0.4. | P48: AGETOP | Q48: 20118 | R48: DEM.ALVEN.TIJOLO S/REAP. C/TR.ATE CB. E CARGA | S48: m3 | T48: 1
A49: 3 | B49: 3 | C49: 3 | D49: 2 | E49: 1 | F49: 1 | G49: 8 | H49: 0 | I49: 0 | J49: 2 | L49: F | M49: Nível 3 | N49: Nível 3 | O49: 1.1.8. | P49: SINAPI | R49: OUTROS | S49: -
A50: S | B50: 3 | C50: S | D50: 0 | E50: 1 | F50: 1 | G50: 8 | H50: 0 | I50: 0 | J50: 0 | K50: 0 | L50: F | M50: Serviço | N50: Serviço | O50: 1.1.8.0.1. | P50: AGETOP | Q50: 21301 | R50: PLACA DE OBRA PLOTADA EM CHAPA METÁLICA 26 , AFIXADA EM CAVALETES DE MADEIRA DE LEI (VIGOTAS 6X12CM) - PADRÃO GOINFRA | S50: m2 | T50: 7.5
A51: 2 | B51: 2 | C51: 2 | D51: 3 | E51: 1 | F51: 2 | G51: 0 | H51: 0 | I51: 0 | J51: 342 | K51: 3 | L51: F | M51: Nível 2 | N51: Nível 2 | O51: 1.2. | P51: AGETOP | R51: TRANSPORTES | S51: -
A52: S | B52: 2 | C52: S | D52: 0 | E52: 1 | F52: 2 | G52: 0 | H52: 0 | I52: 0 | J52: 0 | K52: 0 | L52: F | M52: Serviço | N52: Serviço | O52: 1.2.0.0.1. | P52: SINAPI | Q52: 72900 | R52: TRANSPORTE DE ENTULHO COM CAMINHAO BASCULANTE 6 M3, RODOVIA PAVIMENTADA, DMT 0,5 A 1,0 KM | S52: M3 | T52: 15.39425
A53: S | B53: 2 | C53: S | D53: 0 | E53: 1 | F53: 2 | G53: 0 | H53: 0 | I53: 0 | J53: 0 | K53: 0 | L53: F | M53: Serviço | N53: Serviço | O53: 1.2.0.0.2. | P53: SINAPI | Q53: 72897 | R53: CARGA MANUAL DE ENTULHO EM CAMINHAO BASCULANTE 6 M3 | S53: M3 | T53: 15.39425
A54: 2 | B54: 2 | C54: 2 | D54: 12 | E54: 1 | F54: 3 | G54: 0 | H54: 0 | I54: 0 | J54: 339 | K54: 12 | L54: F | M54: Nível 2 | N54: Nível 2 | O54: 1.3. | P54: AGETOP | R54: SERVIÇO EM TERRA | S54: -
A55: 3 | B55: 3 | C55: 3 | D55: 2 | E55: 1 | F55: 3 | G55: 1 | H55: 0 | I55: 0 | J55: 11 | K55: 2 | L55: F | M55: Nível 3 | N55: Nível 3 | O55: 1.3.1. | R55: PERGOLADO | S55: -
A56: S | B56: 3 | C56: S | D56: 0 | E56: 1 | F56: 3 | G56: 1 | H56: 0 | I56: 0 | J56: 0 | K56: 0 | L56: F | M56: Serviço | N56: Serviço | O56: 1.3.1.0.1. | P56: AGETOP | Q56: 41001 | R56: ESC.CAMPO ABERTO C/TRANP.MANUAL DE TERRA(OC) | S56: m3 | T56: 2.4
A57: 3 | B57: 3 | C57: 3 | D57: 6 | E57: 1 | F57: 3 | G57: 2 | H57: 0 | I57: 0 | J57: 9 | K57: 6 | L57: F | M57: Nível 3 | N57: Nível 3 | O57: 1.3.2. | P57: AGETOP | R57: ACESSIBILIDADE | S57: -
A58: S | B58: 3 | C58: S | D58: 0 | E58: 1 | F58: 3 | G58: 2 | H58: 0 | I58: 0 | J58: 0 | K58: 0 | L58: F | M58: Serviço | N58: Serviço | O58: 1.3.2.0.1. | P58: AGETOP | Q58: 41004 | R58: ESCAVACAO MECANICA | S58: m3 | T58: 2.5
A59: S | B59: 3 | C59: S | D59: 0 | E59: 1 | F59: 3 | G59: 2 | H59: 0 | I59: 0 | J59: 0 | K59: 0 | L59: F | M59: Serviço | N59: Serviço | O59: 1.3.2.0.2. | P59: AGETOP | Q59: 41005 | R59: CARGA MECANIZADA | S59: m3 | T59: 2.5
A60: S | B60: 3 | C60: S | D60: 0 | E60: 1 | F60: 3 | G60: 2 | H60: 0 | I60: 0 | J60: 0 | K60: 0 | L60: F | M60: Serviço | N60: Serviço | O60: 1.3.2.0.3. | P60: AGETOP | Q60: 41012 | R60: INDENIZAÇÃO DE JAZIDA | S60: m3 | T60: 2.5
A61: S | B61: 3 | C61: S | D61: 0 | E61: 1 | F61: 3 | G61: 2 | H61: 0 | I61: 0 | J61: 0 | K61: 0 | L61: F | M61: Serviço | N61: Serviço | O61: 1.3.2.0.4. | P61: AGETOP | Q61: 41006 | R61: TRANSPORTE DE MATERIAL ESCAVADO M3.KM | S61: m3km | T61: 25
A62: S | B62: 3 | C62: S | D62: 0 | E62: 1 | F62: 3 | G62: 2 | H62: 0 | I62: 0 | J62: 0 | K62: 0 | L62: F | M62: Serviço | N62: Serviço | O62: 1.3.2.0.5. | P62: AGETOP | Q62: 41008 | R62: COMPACTAÇÃO MECÂNICA COM CONTROLE DA UMIDADE (95% PN) | S62: m3 | T62: 2
A63: 3 | B63: 3 | C63: 3 | D63: 3 | E63: 1 | F63: 3 | G63: 3 | H63: 0 | I63: 0 | J63: 3 | K63: 49 | L63: F | M63: Nível 3 | N63: Nível 3 | O63: 1.3.3. | P63: AGETOP | R63: IMPLANTAÇÃO | S63: -
A64: S | B64: 3 | C64: S | D64: 0 | E64: 1 | F64: 3 | G64: 3 | H64: 0 | I64: 0 | J64: 0 | K64: 0 | L64: F | M64: Serviço | N64: Serviço | O64: 1.3.3.0.1. | P64: AGETOP | Q64: 41140 | R64: REGULARIZAÇÃO DO TERRENO SEM APILOAMENTO COM TRANSPORTE MANUAL DA TERRA ESCAVADA | S64: m2 | T64: 89.67
A65: S | B65: 3 | C65: S | D65: 0 | E65: 1 | F65: 3 | G65: 3 | H65: 0 | I65: 0 | J65: 0 | K65: 0 | L65: F | M65: Serviço | N65: Serviço | O65: 1.3.3.0.2. | P65: AGETOP | Q65: 41002 | R65: APILOAMENTO | S65: m2 | T65: 89.67
A66: =CHOOSE(1+LOG(1+2*(ORÇAMENTO.Nivel="Nível 1")+4*(ORÇAMENTO.Nivel="Nível 2")+8*(ORÇAMENTO.Nivel="Nível 3")+16*(ORÇAMENTO.Nivel="Nível 4")+32*(ORÇAMENTO.Nivel="Serviço"),2),0,1,2,3,4,"S") -> 2 | B66: =IF(OR(C66="s",C66=0),OFFSET(B66,-1,0),C66) -> 2 | C66: =IF(OFFSET(C66,-1,0)="L",1,IF(OFFSET(C66,-1,0)=1,2,IF(OR(A66="s",A66=0),"S",IF(AND(OFFSET(C66,-1,0)=2,A66=4),3,IF(AND(OR(OFFSET(C66,-1,0)="s",OFFSET(C66,-1,0)=0),A66<>"s",A66>OFFSET(B66,-1,0)),OFFSET(B66,-1,0),A66))))) -> 2 | D66: =IF(OR(C66="S",C66=0),0,IF(ISERROR(K66),J66,SMALL(J66:K66,1))) -> 27 | E66: =IF($C66=1,OFFSET(E66,-1,0)+1,OFFSET(E66,-1,0)) -> 1 | F66: =IF($C66=1,0,IF($C66=2,OFFSET(F66,-1,0)+1,OFFSET(F66,-1,0))) -> 4 | G66: =IF(AND($C66<=2,$C66<>0),0,IF($C66=3,OFFSET(G66,-1,0)+1,OFFSET(G66,-1,0))) -> 0 | H66: =IF(AND($C66<=3,$C66<>0),0,IF($C66=4,OFFSET(H66,-1,0)+1,OFFSET(H66,-1,0))) -> 0 | I66: =IF(AND($C66<=4,$C66<>0),0,IF(AND($C66="S",$W66>0),OFFSET(I66,-1,0)+1,OFFSET(I66,-1,0))) -> 0 | J66: 327 | K66: 27 | L66: F | M66: Nível 2 | N66: Nível 2 | O66: 1.4. | P66: AGETOP | R66: FUNDAÇÕES E SONDAGENS | S66: -
A67: 3 | B67: 3 | C67: 3 | D67: 10 | E67: 1 | F67: 4 | G67: 1 | H67: 0 | I67: 0 | J67: 26 | K67: 10 | L67: F | M67: Nível 3 | N67: Nível 3 | O67: 1.4.1. | P67: SINAPI | R67: ESTACAS E BLOCOS | S67: -
A68: 4 | B68: 4 | C68: 4 | D68: 4 | E68: 1 | F68: 4 | G68: 1 | H68: 1 | I68: 0 | J68: 9 | K68: 4 | L68: F | M68: Nível 4 | N68: Nível 4 | O68: 1.4.1.1. | P68: AGETOP | R68: PERGOLADO | S68: -
A69: S | B69: 4 | C69: S | D69: 0 | E69: 1 | F69: 4 | G69: 1 | H69: 1 | I69: 0 | J69: 0 | K69: 0 | L69: F | M69: Serviço | N69: Serviço | O69: 1.4.1.1.1. | P69: AGETOP | Q69: 50302 | R69: ESTACA A TRADO DIAM.30 CM SEM FERRO | S69: M | T69: 28
A70: S | B70: 4 | C70: S | D70: 0 | E70: 1 | F70: 4 | G70: 1 | H70: 1 | I70: 0 | J70: 0 | K70: 0 | L70: F | M70: Serviço | N70: Serviço | O70: 1.4.1.1.2. | P70: AGETOP | Q70: 52004 | R70: ACO CA 50-A - 8,0 MM (5/16") - (OBRAS CIVIS) | S70: Kg | T70: 22.72727273
A71: S | B71: 4 | C71: S | D71: 0 | E71: 1 | F71: 4 | G71: 1 | H71: 1 | I71: 0 | J71: 0 | K71: 0 | L71: F | M71: Serviço | N71: Serviço | O71: 1.4.1.1.3. | P71: AGETOP | Q71: 52014 | R71: ACO CA-60 - 5,0 MM - (OBRAS CIVIS) | S71: Kg | T71: 19.09090909
A72: 4 | B72: 4 | C72: 4 | D72: 5 | E72: 1 | F72: 4 | G72: 1 | H72: 2 | I72: 0 | J72: 5 | L72: F | M72: Nível 4 | N72: Nível 4 | O72: 1.4.1.2. | P72: AGETOP | R72: ELEVADOR | S72: -
A73: S | B73: 4 | C73: S | D73: 0 | E73: 1 | F73: 4 | G73: 1 | H73: 2 | I73: 0 | J73: 0 | K73: 0 | L73: F | M73: Serviço | N73: Serviço | O73: 1.4.1.2.1. | P73: AGETOP | Q73: 50302 | R73: ESTACA A TRADO DIAM.30 CM SEM FERRO | S73: M | T73: 9
A74: S | B74: 4 | C74: S | D74: 0 | E74: 1 | F74: 4 | G74: 1 | H74: 2 | I74: 0 | J74: 0 | K74: 0 | L74: F | M74: Serviço | N74: Serviço | O74: 1.4.1.2.2. | P74: AGETOP | Q74: 52004 | R74: ACO CA 50-A - 8,0 MM (5/16") - (OBRAS CIVIS) | S74: Kg | T74: 9.090909091
A75: S | B75: 4 | C75: S | D75: 0 | E75: 1 | F75: 4 | G75: 1 | H75: 2 | I75: 0 | J75: 0 | K75: 0 | L75: F | M75: Serviço | N75: Serviço | O75: 1.4.1.2.3. | P75: AGETOP | Q75: 52005 | R75: ACO CA-50A - 10,0 MM (3/8") - (OBRAS CIVIS) | S75: Kg | T75: 16.36363636
A76: S | B76: 4 | C76: S | D76: 0 | E76: 1 | F76: 4 | G76: 1 | H76: 2 | I76: 0 | J76: 0 | K76: 0 | L76: F | M76: Serviço | N76: Serviço | O76: 1.4.1.2.4. | P76: AGETOP | Q76: 52014 | R76: ACO CA-60 - 5,0 MM - (OBRAS CIVIS) | S76: Kg | T76: 3.636363636
A77: 3 | B77: 3 | C77: 3 | D77: 16 | E77: 1 | F77: 4 | G77: 2 | H77: 0 | I77: 0 | J77: 16 | K77: 29 | L77: F | M77: Nível 3 | N77: Nível 3 | O77: 1.4.2. | P77: SINAPI | R77: VIGAS BALDRAMES | S77: -
A78: 4 | B78: 4 | C78: 4 | D78: 7 | E78: 1 | F78: 4 | G78: 2 | H78: 1 | I78: 0 | J78: 15 | K78: 7 | L78: F | M78: Nível 4 | N78: Nível 4 | O78: 1.4.2.1. | P78: AGETOP | R78: PERGOLADO | S78: -
A79: S | B79: 4 | C79: S | D79: 0 | E79: 1 | F79: 4 | G79: 2 | H79: 1 | I79: 0 | J79: 0 | K79: 0 | L79: F | M79: Serviço | N79: Serviço | O79: 1.4.2.1.1. | P79: AGETOP | Q79: 40101 | R79: ESCAVACAO MANUAL DE VALAS < 1 MTS. (OBRAS CIVIS) | S79: m3 | T79: 0.648
A80: S | B80: 4 | C80: S | D80: 0 | E80: 1 | F80: 4 | G80: 2 | H80: 1 | I80: 0 | J80: 0 | K80: 0 | L80: F | M80: Serviço | N80: Serviço | O80: 1.4.2.1.2. | P80: AGETOP | Q80: 40902 | R80: REATERRO COM APILOAMENTO | S80: m3 | T80: 0.468
A81: S | B81: 4 | C81: S | D81: 0 | E81: 1 | F81: 4 | G81: 2 | H81: 1 | I81: 0 | J81: 0 | K81: 0 | L81: F | M81: Serviço | N81: Serviço | O81: 1.4.2.1.3. | P81: AGETOP | Q81: 51017 | R81: PREPARO COM BETONEIRA E TRANSPORTE MANUAL DE CONCRETO FCK-20 - (O.C.) | S81: m3 | T81: 0.18
A82: S | B82: 4 | C82: S | D82: 0 | E82: 1 | F82: 4 | G82: 2 | H82: 1 | I82: 0 | J82: 0 | K82: 0 | L82: F | M82: Serviço | N82: Serviço | O82: 1.4.2.1.4. | P82: AGETOP | Q82: 51026 | R82: LANÇAMENTO/APLICAÇÃO/ADENSAMENTO DE CONCRETO EM FUNDAÇÃO- (O.C.) | S82: m3 | T82: 0.18
A83: S | B83: 4 | C83: S | D83: 0 | E83: 1 | F83: 4 | G83: 2 | H83: 1 | I83: 0 | J83: =IF(OR($C83="S",$C83=0),0,MATCH(0,OFFSET($D83,1,$C83,ROW($C$584)-ROW($C83)),0)) -> 0 | K83: =IF(OR($C83="S",$C83=0),0,MATCH(OFFSET($D83,0,$C83)+1,OFFSET($D83,1,$C83,ROW($C$584)-ROW($C83)),0)) -> 0 | L83: F | M83: Serviço | N83: Serviço | O83: 1.4.2.1.5. | P83: AGETOP | Q83: 52005 | R83: ACO CA-50A - 10,0 MM (3/8") - (OBRAS CIVIS) | S83: Kg | T83: 11.81818182
A84: S | B84: 4 | C84: S | D84: 0 | E84: 1 | F84: 4 | G84: 2 | H84: 1 | I84: 0 | J84: 0 | K84: 0 | L84: F | M84: Serviço | N84: Serviço | O84: 1.4.2.1.6. | P84: AGETOP | Q84: 52014 | R84: ACO CA-60 - 5,0 MM - (OBRAS CIVIS) | S84: Kg | T84: 4.545454545
A85: 4 | B85: 4 | C85: 4 | D85: 8 | E85: 1 | F85: 4 | G85: 2 | H85: 2 | I85: 0 | J85: 8 | L85: F | M85: Nível 4 | N85: Nível 4 | O85: 1.4.2.2. | P85: AGETOP | R85: ELEVADOR | S85: -
A86: S | B86: 4 | C86: S | D86: 0 | E86: 1 | F86: 4 | G86: 2 | H86: 2 | I86: 0 | J86: 0 | K86: 0 | L86: F | M86: Serviço | N86: Serviço | O86: 1.4.2.2.1. | P86: AGETOP | Q86: 40101 | R86: ESCAVACAO MANUAL DE VALAS < 1 MTS. (OBRAS CIVIS) | S86: m3 | T86: 0.79992
A87: S | B87: 4 | C87: S | D87: 0 | E87: 1 | F87: 4 | G87: 2 | H87: 2 | I87: 0 | J87: 0 | K87: 0 | L87: F | M87: Serviço | N87: Serviço | O87: 1.4.2.2.2. | P87: AGETOP | Q87: 40902 | R87: REATERRO COM APILOAMENTO | S87: m3 | T87: 0.48992
A88: S | B88: 4 | C88: S | D88: 0 | E88: 1 | F88: 4 | G88: 2 | H88: 2 | I88: 0 | J88: 0 | K88: 0 | L88: F | M88: Serviço | N88: Serviço | O88: 1.4.2.2.3. | P88: AGETOP | Q88: 60191 | R88: FORMA DE TABUA CINTA BALDRAME U=8 VEZES | S88: m2 | T88: 5.46
A89: =CHOOSE(1+LOG(1+2*(ORÇAMENTO.Nivel="Nível 1")+4*(ORÇAMENTO.Nivel="Nível 2")+8*(ORÇAMENTO.Nivel="Nível 3")+16*(ORÇAMENTO.Nivel="Nível 4")+32*(ORÇAMENTO.Nivel="Serviço"),2),0,1,2,3,4,"S") -> S | B89: =IF(OR(C89="s",C89=0),OFFSET(B89,-1,0),C89) -> 4 | C89: =IF(OFFSET(C89,-1,0)="L",1,IF(OFFSET(C89,-1,0)=1,2,IF(OR(A89="s",A89=0),"S",IF(AND(OFFSET(C89,-1,0)=2,A89=4),3,IF(AND(OR(OFFSET(C89,-1,0)="s",OFFSET(C89,-1,0)=0),A89<>"s",A89>OFFSET(B89,-1,0)),OFFSET(B89,-1,0),A89))))) -> S | D89: =IF(OR(C89="S",C89=0),0,IF(ISERROR(K89),J89,SMALL(J89:K89,1))) -> 0 | E89: =IF($C89=1,OFFSET(E89,-1,0)+1,OFFSET(E89,-1,0)) -> 1 | F89: =IF($C89=1,0,IF($C89=2,OFFSET(F89,-1,0)+1,OFFSET(F89,-1,0))) -> 4 | G89: =IF(AND($C89<=2,$C89<>0),0,IF($C89=3,OFFSET(G89,-1,0)+1,OFFSET(G89,-1,0))) -> 2 | H89: =IF(AND($C89<=3,$C89<>0),0,IF($C89=4,OFFSET(H89,-1,0)+1,OFFSET(H89,-1,0))) -> 2 | I89: =IF(AND($C89<=4,$C89<>0),0,IF(AND($C89="S",$W89>0),OFFSET(I89,-1,0)+1,OFFSET(I89,-1,0))) -> 0 | J89: 0 | K89: 0 | L89: F | M89: Serviço | N89: Serviço | O89: 1.4.2.2.4. | P89: AGETOP | Q89: 51015 | R89: PREPARO COM BETONEIRA E TRANSPORTE MANUAL DE CONCRETO FCK-15 - (O.C.) | S89: m3 | T89: 0.31
A90: S | B90: 4 | C90: S | D90: 0 | E90: 1 | F90: 4 | G90: 2 | H90: 2 | I90: 0 | J90: 0 | K90: 0 | L90: F | M90: Serviço | N90: Serviço | O90: 1.4.2.2.5. | P90: AGETOP | Q90: 51026 | R90: LANÇAMENTO/APLICAÇÃO/ADENSAMENTO DE CONCRETO EM FUNDAÇÃO- (O.C.) | S90: m3 | T90: 0.31
A91: S | B91: 4 | C91: S | D91: 0 | E91: 1 | F91: 4 | G91: 2 | H91: 2 | I91: 0 | J91: 0 | K91: 0 | L91: F | M91: Serviço | N91: Serviço | O91: 1.4.2.2.6. | P91: AGETOP | Q91: 52004 | R91: ACO CA 50-A - 8,0 MM (5/16") - (OBRAS CIVIS) | S91: Kg | T91: 11.81818182
A92: S | B92: 4 | C92: S | D92: 0 | E92: 1 | F92: 4 | G92: 2 | H92: 2 | I92: 0 | J92: 0 | K92: 0 | L92: F | M92: Serviço | N92: Serviço | O92: 1.4.2.2.7. | P92: AGETOP | Q92: 52014 | R92: ACO CA-60 - 5,0 MM - (OBRAS CIVIS) | S92: Kg | T92: 6.363636364
A93: 2 | B93: 2 | C93: 2 | D93: 24 | E93: 1 | F93: 5 | G93: 0 | H93: 0 | I93: 0 | J93: 300 | K93: 24 | L93: F | M93: Nível 2 | N93: Nível 2 | O93: 1.5. | P93: AGETOP | R93: ESTRUTURA | S93: -
A94: 3 | B94: 3 | C94: 3 | D94: 6 | E94: 1 | F94: 5 | G94: 1 | H94: 0 | I94: 0 | J94: 23 | K94: 6 | L94: F | M94: Nível 3 | N94: Nível 3 | O94: 1.5.1. | P94: AGETOP | R94: PILARES | S94: -
A95: S | B95: 3 | C95: S | D95: 0 | E95: 1 | F95: 5 | G95: 1 | H95: 0 | I95: 0 | J95: 0 | K95: 0 | L95: F | M95: Serviço | N95: Serviço | O95: 1.5.1.0.1. | P95: SINAPI | Q95: 92426 | R95: MONTAGEM E DESMONTAGEM DE FÔRMA DE PILARES RETANGULARES E ESTRUTURAS SIMILARES COM ÁREA MÉDIA DAS SEÇÕES MENOR OU IGUAL A 0,25 M², PÉ-DIREITO SIMPLES, EM CHAPA DE MADEIRA COMPENSADA RESINADA, 8 UTILIZAÇÕES. AF_12/2015 | S95: M2 | T95: 19.97
A96: S | B96: 3 | C96: S | D96: 0 | E96: 1 | F96: 5 | G96: 1 | H96: 0 | I96: 0 | J96: 0 | K96: 0 | L96: F | M96: Serviço | N96: Serviço | O96: 1.5.1.0.2. | P96: SINAPI | Q96: 94964 | R96: CONCRETO FCK = 20MPA, TRAÇO 1:2,7:3 (CIMENTO/ AREIA MÉDIA/ BRITA 1) - PREPARO MECÂNICO COM BETONEIRA 400 L. AF_07/2016 | S96: M3 | T96: 0.91
A97: S | B97: 3 | C97: S | D97: 0 | E97: 1 | F97: 5 | G97: 1 | H97: 0 | I97: 0 | J97: 0 | K97: 0 | L97: F | M97: Serviço | N97: Serviço | O97: 1.5.1.0.3. | P97: AGETOP | Q97: 60801 | R97: LANÇAMENTO/APLICAÇÃO/ADENSAMENTO MANUAL DE CONCRETO - (OBRAS CIVIS) | S97: m3 | T97: 0.91
A98: S | B98: 3 | C98: S | D98: 0 | E98: 1 | F98: 5 | G98: 1 | H98: 0 | I98: 0 | J98: 0 | K98: 0 | L98: F | M98: Serviço | N98: Serviço | O98: 1.5.1.0.4. | P98: AGETOP | Q98: 60305 | R98: ACO CA-50A - 10,0 MM (3/8") - (OBRAS CIVIS) | S98: Kg | T98: 69.09090909
A99: S | B99: 3 | C99: S | D99: 0 | E99: 1 | F99: 5 | G99: 1 | H99: 0 | I99: 0 | J99: 0 | K99: 0 | L99: F | M99: Serviço | N99: Serviço | O99: 1.5.1.0.5. | P99: AGETOP | Q99: 60314 | R99: ACO CA - 60 - 5,0 MM - (OBRAS CIVIS) | S99: Kg | T99: 26.36363636
A100: 3 | B100: 3 | C100: 3 | D100: 6 | E100: 1 | F100: 5 | G100: 2 | H100: 0 | I100: 0 | J100: 17 | K100: 6 | L100: F | M100: Nível 3 | N100: Nível 3 | O100: 1.5.2. | R100: VIGAS INTERMEDIÁRIAS | S100: -
A101: S | B101: 3 | C101: S | D101: 0 | E101: 1 | F101: 5 | G101: 2 | H101: 0 | I101: 0 | J101: 0 | K101: 0 | L101: F | M101: Serviço | N101: Serviço | O101: 1.5.2.0.1. | P101: AGETOP | Q101: 60209 | R101: FORMA CH.COMPENSADA 12MM-VIGA/PILAR U=4V - (OBRAS CIVIS | S101: m2 | T101: 5.46
A102: S | B102: 3 | C102: S | D102: 0 | E102: 1 | F102: 5 | G102: 2 | H102: 0 | I102: 0 | J102: 0 | K102: 0 | L102: F | M102: Serviço | N102: Serviço | O102: 1.5.2.0.2. | P102: SINAPI | Q102: 94964 | R102: CONCRETO FCK = 20MPA, TRAÇO 1:2,7:3 (CIMENTO/ AREIA MÉDIA/ BRITA 1) - PREPARO MECÂNICO COM BETONEIRA 400 L. AF_07/2016 | S102: M3 | T102: 0.31
A103: S | B103: 3 | C103: S | D103: 0 | E103: 1 | F103: 5 | G103: 2 | H103: 0 | I103: 0 | J103: 0 | K103: 0 | L103: F | M103: Serviço | N103: Serviço | O103: 1.5.2.0.3. | P103: AGETOP | Q103: 60801 | R103: LANÇAMENTO/APLICAÇÃO/ADENSAMENTO MANUAL DE CONCRETO - (OBRAS CIVIS) | S103: m3 | T103: 0.31
A104: S | B104: 3 | C104: S | D104: 0 | E104: 1 | F104: 5 | G104: 2 | H104: 0 | I104: 0 | J104: 0 | K104: 0 | L104: F | M104: Serviço | N104: Serviço | O104: 1.5.2.0.4. | P104: AGETOP | Q104: 60304 | R104: ACO CA-50 A - 8,0 MM (5/16") - (OBRAS CIVIS) | S104: Kg | T104: 11.81818182
A105: S | B105: 3 | C105: S | D105: 0 | E105: 1 | F105: 5 | G105: 2 | H105: 0 | I105: 0 | J105: 0 | K105: 0 | L105: F | M105: Serviço | N105: Serviço | O105: 1.5.2.0.5. | P105: AGETOP | Q105: 60314 | R105: ACO CA - 60 - 5,0 MM - (OBRAS CIVIS) | S105: Kg | T105: 6.363636364
A106: 3 | B106: 3 | C106: 3 | D106: 6 | E106: 1 | F106: 5 | G106: 3 | H106: 0 | I106: 0 | J106: 11 | K106: 6 | L106: F | M106: Nível 3 | N106: Nível 3 | O106: 1.5.3. | P106: AGETOP | R106: VIGAS DE COBERTURA | S106: -
A107: =CHOOSE(1+LOG(1+2*(ORÇAMENTO.Nivel="Nível 1")+4*(ORÇAMENTO.Nivel="Nível 2")+8*(ORÇAMENTO.Nivel="Nível 3")+16*(ORÇAMENTO.Nivel="Nível 4")+32*(ORÇAMENTO.Nivel="Serviço"),2),0,1,2,3,4,"S") -> S | B107: 3 | C107: S | D107: 0 | E107: 1 | F107: 5 | G107: 3 | H107: 0 | I107: =IF(AND($C107<=4,$C107<>0),0,IF(AND($C107="S",$W107>0),OFFSET(I107,-1,0)+1,OFFSET(I107,-1,0))) -> 0 | J107: 0 | K107: 0 | L107: F | M107: Serviço | N107: Serviço | O107: 1.5.3.0.1. | P107: AGETOP | Q107: 60209 | R107: FORMA CH.COMPENSADA 12MM-VIGA/PILAR U=4V - (OBRAS CIVIS | S107: m2 | T107: 5.46
A108: S | B108: 3 | C108: S | D108: 0 | E108: 1 | F108: 5 | G108: 3 | H108: 0 | I108: 0 | J108: 0 | K108: 0 | L108: F | M108: Serviço | N108: Serviço | O108: 1.5.3.0.2. | P108: SINAPI | Q108: 94964 | R108: CONCRETO FCK = 20MPA, TRAÇO 1:2,7:3 (CIMENTO/ AREIA MÉDIA/ BRITA 1) - PREPARO MECÂNICO COM BETONEIRA 400 L. AF_07/2016 | S108: M3 | T108: 0.31
A109: S | B109: 3 | C109: S | D109: 0 | E109: 1 | F109: 5 | G109: 3 | H109: 0 | I109: 0 | J109: 0 | K109: 0 | L109: F | M109: Serviço | N109: Serviço | O109: 1.5.3.0.3. | P109: AGETOP | Q109: 60801 | R109: LANÇAMENTO/APLICAÇÃO/ADENSAMENTO MANUAL DE CONCRETO - (OBRAS CIVIS) | S109: m3 | T109: 0.31
A110: S | B110: 3 | C110: S | D110: 0 | E110: 1 | F110: 5 | G110: 3 | H110: 0 | I110: 0 | J110: 0 | K110: 0 | L110: F | M110: Serviço | N110: Serviço | O110: 1.5.3.0.4. | P110: AGETOP | Q110: 60304 | R110: ACO CA-50 A - 8,0 MM (5/16") - (OBRAS CIVIS) | S110: Kg | T110: 11.81818182
A111: S | B111: 3 | C111: S | D111: 0 | E111: 1 | F111: 5 | G111: 3 | H111: 0 | I111: 0 | J111: 0 | K111: 0 | L111: F | M111: Serviço | N111: Serviço | O111: 1.5.3.0.5. | P111: AGETOP | Q111: 60314 | R111: ACO CA - 60 - 5,0 MM - (OBRAS CIVIS) | S111: Kg | T111: 6.363636364
A112: 3 | B112: 3 | C112: 3 | D112: 5 | E112: 1 | F112: 5 | G112: 4 | H112: 0 | I112: 0 | J112: 5 | K112: 227 | L112: F | M112: Nível 3 | N112: Nível 3 | O112: 1.5.4. | R112: LAJE | S112: -
A113: S | B113: 3 | C113: S | D113: 0 | E113: 1 | F113: 5 | G113: 4 | H113: 0 | I113: 0 | J113: 0 | K113: 0 | L113: F | M113: Serviço | N113: Serviço | O113: 1.5.4.0.1. | P113: SINAPI | Q113: 92525 | R113: MONTAGEM E DESMONTAGEM DE FÔRMA DE LAJE MACIÇA COM ÁREA MÉDIA MENOR OU IGUAL A 20 M², PÉ-DIREITO SIMPLES, EM CHAPA DE MADEIRA COMPENSADA PLASTIFICADA, 10 UTILIZAÇÕES. AF_12/2015 | S113: M2 | T113: 4.4
A114: S | B114: 3 | C114: S | D114: 0 | E114: 1 | F114: 5 | G114: 4 | H114: 0 | I114: 0 | J114: 0 | K114: 0 | L114: F | M114: Serviço | N114: Serviço | O114: 1.5.4.0.2. | P114: SINAPI | Q114: 94964 | R114: CONCRETO FCK = 20MPA, TRAÇO 1:2,7:3 (CIMENTO/ AREIA MÉDIA/ BRITA 1) - PREPARO MECÂNICO COM BETONEIRA 400 L. AF_07/2016 | S114: M3 | T114: 0.43
A115: S | B115: 3 | C115: S | D115: 0 | E115: 1 | F115: 5 | G115: 4 | H115: 0 | I115: 0 | J115: 0 | K115: 0 | L115: F | M115: Serviço | N115: Serviço | O115: 1.5.4.0.3. | P115: AGETOP | Q115: 60801 | R115: LANÇAMENTO/APLICAÇÃO/ADENSAMENTO MANUAL DE CONCRETO - (OBRAS CIVIS) | S115: m3 | T115: 0.43
A116: S | B116: 3 | C116: S | D116: 0 | E116: 1 | F116: 5 | G116: 4 | H116: 0 | I116: 0 | J116: 0 | K116: 0 | L116: F | M116: Serviço | N116: Serviço | O116: 1.5.4.0.4. | P116: AGETOP | Q116: 60303 | R116: ACO CA-50-A - 6,3 MM (1/4") - (OBRAS CIVIS) | S116: Kg | T116: 17.27272727
A117: 2 | B117: 2 | C117: 2 | D117: 110 | E117: 1 | F117: 6 | G117: 0 | H117: 0 | I117: 0 | J117: 276 | K117: 110 | L117: F | M117: Nível 2 | N117: Nível 2 | O117: 1.6. | R117: INSTALAÇÕES ELÉTRICAS | S117: -
A118: 3 | B118: 3 | C118: 3 | D118: 60 | E118: 1 | F118: 6 | G118: 1 | H118: 0 | I118: 0 | J118: 109 | K118: 60 | L118: F | M118: Nível 3 | N118: Nível 3 | O118: 1.6.1. | P118: SINAPI | R118: REFORMA ELÉTRICA | S118: -
A119: S | B119: 3 | C119: S | D119: 0 | E119: 1 | F119: 6 | G119: 1 | H119: 0 | I119: 0 | J119: 0 | K119: 0 | L119: F | M119: Serviço | N119: Serviço | O119: 1.6.1.0.1. | P119: SINAPI | Q119: 74131/4 | R119: QUADRO DE DISTRIBUICAO DE ENERGIA DE EMBUTIR, EM CHAPA METALICA, PARA 18 DISJUNTORES TERMOMAGNETICOS MONOPOLARES, COM BARRAMENTO TRIFASICO E NEUTRO, FORNECIMENTO E INSTALACAO | S119: UN | T119: 7
A120: S | B120: 3 | C120: S | D120: 0 | E120: 1 | F120: 6 | G120: 1 | H120: 0 | I120: 0 | J120: 0 | K120: 0 | L120: F | M120: Serviço | N120: Serviço | O120: 1.6.1.0.2. | P120: SINAPI | Q120: 74131/6 | R120: QUADRO DE DISTRIBUICAO DE ENERGIA DE EMBUTIR, EM CHAPA METALICA, PARA 32 DISJUNTORES TERMOMAGNETICOS MONOPOLARES, COM BARRAMENTO TRIFASICO E NEUTRO, FORNECIMENTO E INSTALACAO | S120: UN | T120: 1 | X120: Referência: AGETOP - 72198
A121: S | B121: 3 | C121: S | D121: 0 | E121: 1 | F121: 6 | G121: 1 | H121: 0 | I121: 0 | J121: 0 | K121: 0 | L121: F | M121: Serviço | N121: Serviço | O121: 1.6.1.0.3. | P121: SINAPI | Q121: 93670 | R121: DISJUNTOR TRIPOLAR TIPO DIN, CORRENTE NOMINAL DE 25A - FORNECIMENTO E INSTALAÇÃO. AF_04/2016 | S121: UN | T121: 2 | X121: Referência: AGETOP - 71173
A122: S | B122: 3 | C122: S | D122: 0 | E122: 1 | F122: 6 | G122: 1 | H122: 0 | I122: 0 | J122: 0 | K122: 0 | L122: F | M122: Serviço | N122: Serviço | O122: 1.6.1.0.4. | P122: SINAPI | Q122: 93671 | R122: DISJUNTOR TRIPOLAR TIPO DIN, CORRENTE NOMINAL DE 32A - FORNECIMENTO E INSTALAÇÃO. AF_04/2016 | S122: UN | T122: 6 | X122: Referência: AGETOP - 71173
A123: S | B123: 3 | C123: S | D123: 0 | E123: 1 | F123: 6 | G123: 1 | H123: 0 | I123: 0 | J123: 0 | K123: 0 | L123: F | M123: Serviço | N123: Serviço | O123: 1.6.1.0.5. | P123: SINAPI | Q123: 93673 | R123: DISJUNTOR TRIPOLAR TIPO DIN, CORRENTE NOMINAL DE 50A - FORNECIMENTO E INSTALAÇÃO. AF_04/2016 | S123: UN | T123: 2 | X123: Referência: AGETOP - 71174
A124: S | B124: 3 | C124: S | D124: 0 | E124: 1 | F124: 6 | G124: 1 | H124: 0 | I124: 0 | J124: 0 | K124: 0 | L124: F | M124: Serviço | N124: Serviço | O124: 1.6.1.0.6. | P124: SINAPI | Q124: 74130/10 | R124: DISJUNTOR TERMOMAGNETICO TRIPOLAR EM CAIXA MOLDADA 175 A 225A 240V, FORNECIMENTO E INSTALACAO | S124: UN | T124: 2
A125: S | B125: 3 | C125: S | D125: 0 | E125: 1 | F125: 6 | G125: 1 | H125: 0 | I125: 0 | J125: 0 | K125: 0 | L125: F | M125: Serviço | N125: Serviço | O125: 1.6.1.0.7. | P125: SINAPI | Q125: 93657 | R125: DISJUNTOR MONOPOLAR TIPO DIN, CORRENTE NOMINAL DE 32A - FORNECIMENTO E INSTALAÇÃO. AF_04/2016 | S125: UN | T125: 1
A126: S | B126: 3 | C126: S | D126: 0 | E126: 1 | F126: 6 | G126: 1 | H126: 0 | I126: 0 | J126: 0 | K126: 0 | L126: F | M126: Serviço | N126: Serviço | O126: 1.6.1.0.8. | P126: SINAPI | Q126: 93656 | R126: DISJUNTOR MONOPOLAR TIPO DIN, CORRENTE NOMINAL DE 25A - FORNECIMENTO E INSTALAÇÃO. AF_04/2016 | S126: UN | T126: 23
A127: S | B127: 3 | C127: S | D127: 0 | E127: 1 | F127: 6 | G127: 1 | H127: 0 | I127: 0 | J127: 0 | K127: 0 | L127: F | M127: Serviço | N127: Serviço | O127: 1.6.1.0.9. | P127: SINAPI | Q127: 93654 | R127: DISJUNTOR MONOPOLAR TIPO DIN, CORRENTE NOMINAL DE 16A - FORNECIMENTO E INSTALAÇÃO. AF_04/2016 | S127: UN | T127: 22
A128: S | B128: 3 | C128: S | D128: 0 | E128: 1 | F128: 6 | G128: 1 | H128: 0 | I128: 0 | J128: 0 | K128: 0 | L128: F | M128: Serviço | N128: Serviço | O128: 1.6.1.0.10. | P128: SINAPI | Q128: 93653 | R128: DISJUNTOR MONOPOLAR TIPO DIN, CORRENTE NOMINAL DE 10A - FORNECIMENTO E INSTALAÇÃO. AF_04/2016 | S128: UN | T128: 33
A129: S | B129: 3 | C129: S | D129: 0 | E129: 1 | F129: 6 | G129: 1 | H129: 0 | I129: 0 | J129: 0 | K129: 0 | L129: F | M129: Serviço | N129: Serviço | O129: 1.6.1.0.11. | P129: AGETOP | Q129: 71184 | R129: DISPOSITIVO DE PROTEÇÃO CONTRA SURTOS (D.P.S.) 275V DE 8 A 40KA | S129: Un | T129: 3
A130: S | B130: 3 | C130: S | D130: 0 | E130: 1 | F130: 6 | G130: 1 | H130: 0 | I130: 0 | J130: 0 | K130: 0 | L130: F | M130: Serviço | N130: Serviço | O130: 1.6.1.0.12. | P130: AGETOP | Q130: 71451 | R130: INTERRUPTOR DIFERENCIAL RESIDUAL (D.R.) BIPOLAR DE 40A-30mA | S130: Un | T130: 5
A131: S | B131: 3 | C131: S | D131: 0 | E131: 1 | F131: 6 | G131: 1 | H131: 0 | I131: 0 | J131: 0 | K131: 0 | L131: F | M131: Serviço | N131: Serviço | O131: 1.6.1.0.13. | P131: SINAPI | Q131: 91926 | R131: CABO DE COBRE FLEXÍVEL ISOLADO, 2,5 MM², ANTI-CHAMA 450/750 V, PARA CIRCUITOS TERMINAIS - FORNECIMENTO E INSTALAÇÃO. AF_12/2015 | S131: M | T131: 4876 | X131: Referência: AGETOP - 70563
A132: S | B132: 3 | C132: S | D132: 0 | E132: 1 | F132: 6 | G132: 1 | H132: 0 | I132: 0 | J132: 0 | K132: 0 | L132: F | M132: Serviço | N132: Serviço | O132: 1.6.1.0.14. | P132: SINAPI | Q132: 91928 | R132: CABO DE COBRE FLEXÍVEL ISOLADO, 4 MM², ANTI-CHAMA 450/750 V, PARA CIRCUITOS TERMINAIS - FORNECIMENTO E INSTALAÇÃO. AF_12/2015 | S132: M | T132: 1752.1 | X132: Referência: AGETOP - 70564
A133: S | B133: 3 | C133: S | D133: 0 | E133: 1 | F133: 6 | G133: 1 | H133: 0 | I133: 0 | J133: 0 | K133: 0 | L133: F | M133: Serviço | N133: Serviço | O133: 1.6.1.0.15. | P133: SINAPI | Q133: 91930 | R133: CABO DE COBRE FLEXÍVEL ISOLADO, 6 MM², ANTI-CHAMA 450/750 V, PARA CIRCUITOS TERMINAIS - FORNECIMENTO E INSTALAÇÃO. AF_12/2015 | S133: M | T133: 467.8 | X133: Referência: AGETOP - 70565
A134: S | B134: 3 | C134: S | D134: 0 | E134: 1 | F134: 6 | G134: 1 | H134: 0 | I134: 0 | J134: 0 | K134: 0 | L134: F | M134: Serviço | N134: Serviço | O134: 1.6.1.0.16. | P134: SINAPI | Q134: 92979 | R134: CABO DE COBRE FLEXÍVEL ISOLADO, 10 MM², ANTI-CHAMA 450/750 V, PARA DISTRIBUIÇÃO - FORNECIMENTO E INSTALAÇÃO. AF_12/2015 | S134: M | T134: 358.75
A135: S | B135: 3 | C135: S | D135: 0 | E135: 1 | F135: 6 | G135: 1 | H135: 0 | I135: 0 | J135: 0 | K135: 0 | L135: F | M135: Serviço | N135: Serviço | O135: 1.6.1.0.17. | P135: SINAPI | Q135: 92981 | R135: CABO DE COBRE FLEXÍVEL ISOLADO, 16 MM², ANTI-CHAMA 450/750 V, PARA DISTRIBUIÇÃO - FORNECIMENTO E INSTALAÇÃO. AF_12/2015 | S135: M | T135: 365.5
A136: S | B136: 3 | C136: S | D136: 0 | E136: 1 | F136: 6 | G136: 1 | H136: 0 | I136: 0 | J136: 0 | K136: 0 | L136: F | M136: Serviço | N136: Serviço | O136: 1.6.1.0.18. | P136: SINAPI | Q136: 92990 | R136: CABO DE COBRE FLEXÍVEL ISOLADO, 70 MM², ANTI-CHAMA 0,6/1,0 KV, PARA DISTRIBUIÇÃO - FORNECIMENTO E INSTALAÇÃO. AF_12/2015 | S136: M | T136: 468.12 | X136: Referência: AGETOP - 70514
A137: S | B137: 3 | C137: S | D137: 0 | E137: 1 | F137: 6 | G137: 1 | H137: 0 | I137: 0 | J137: 0 | K137: 0 | L137: F | M137: Serviço | N137: Serviço | O137: 1.6.1.0.19. | P137: SINAPI | Q137: 92986 | R137: CABO DE COBRE FLEXÍVEL ISOLADO, 35 MM², ANTI-CHAMA 0,6/1,0 KV, PARA DISTRIBUIÇÃO - FORNECIMENTO E INSTALAÇÃO. AF_12/2015 | S137: M | T137: 117.03 | X137: Referência: AGETOP - 70512
A138: S | B138: 3 | C138: S | D138: 0 | E138: 1 | F138: 6 | G138: 1 | H138: 0 | I138: 0 | J138: 0 | K138: 0 | L138: F | M138: Serviço | N138: Serviço | O138: 1.6.1.0.20. | P138: AGETOP | Q138: 70541 | R138: CABO DE COBRE NU No. 16 MM2 (6,94 M/KG) | S138: M | T138: 15
A139: S | B139: 3 | C139: S | D139: 0 | E139: 1 | F139: 6 | G139: 1 | H139: 0 | I139: 0 | J139: 0 | K139: 0 | L139: F | M139: Serviço | N139: Serviço | O139: 1.6.1.0.21. | P139: AGETOP | Q139: 70544 | R139: CABO DE COBRE NÚ No. 50 MM2 | S139: M | T139: 15
A140: S | B140: 3 | C140: S | D140: 0 | E140: 1 | F140: 6 | G140: 1 | H140: 0 | I140: 0 | J140: 0 | K140: 0 | L140: F | M140: Serviço | N140: Serviço | O140: 1.6.1.0.22. | P140: SINAPI | Q140: 91867 | R140: ELETRODUTO RÍGIDO ROSCÁVEL, PVC, DN 25 MM (3/4"), PARA CIRCUITOS TERMINAIS, INSTALADO EM LAJE - FORNECIMENTO E INSTALAÇÃO. AF_12/2015 | S140: M | T140: 1915 | X140: Referência: AGETOP - 71201
A141: S | B141: 3 | C141: S | D141: 0 | E141: 1 | F141: 6 | G141: 1 | H141: 0 | I141: 0 | J141: 0 | K141: 0 | L141: F | M141: Serviço | N141: Serviço | O141: 1.6.1.0.23. | P141: SINAPI | Q141: 91868 | R141: ELETRODUTO RÍGIDO ROSCÁVEL, PVC, DN 32 MM (1"), PARA CIRCUITOS TERMINAIS, INSTALADO EM LAJE - FORNECIMENTO E INSTALAÇÃO. AF_12/2015 | S141: M | T141: 587 | X141: Referência: AGETOP - 71202
A142: S | B142: 3 | C142: S | D142: 0 | E142: 1 | F142: 6 | G142: 1 | H142: 0 | I142: 0 | J142: 0 | K142: 0 | L142: F | M142: Serviço | N142: Serviço | O142: 1.6.1.0.24. | P142: SINAPI | Q142: 93008 | R142: ELETRODUTO RÍGIDO ROSCÁVEL, PVC, DN 50 MM (1 1/2") - FORNECIMENTO E INSTALAÇÃO. AF_12/2015 | S142: M | T142: 65
A143: S | B143: 3 | C143: S | D143: 0 | E143: 1 | F143: 6 | G143: 1 | H143: 0 | I143: 0 | J143: 0 | K143: 0 | L143: F | M143: Serviço | N143: Serviço | O143: 1.6.1.0.25. | P143: SINAPI | Q143: 93009 | R143: ELETRODUTO RÍGIDO ROSCÁVEL, PVC, DN 60 MM (2") - FORNECIMENTO E INSTALAÇÃO. AF_12/2015 | S143: M | T143: 53
A144: S | B144: 3 | C144: S | D144: 0 | E144: 1 | F144: 6 | G144: 1 | H144: 0 | I144: 0 | J144: 0 | K144: 0 | L144: F | M144: Serviço | N144: Serviço | O144: 1.6.1.0.26. | P144: SINAPI | Q144: 93010 | R144: ELETRODUTO RÍGIDO ROSCÁVEL, PVC, DN 75 MM (2 1/2") - FORNECIMENTO E INSTALAÇÃO. AF_12/2015 | S144: M | T144: 217
A145: S | B145: 3 | C145: S | D145: 0 | E145: 1 | F145: 6 | G145: 1 | H145: 0 | I145: 0 | J145: 0 | K145: 0 | L145: F | M145: Serviço | N145: Serviço | O145: 1.6.1.0.27. | P145: AGETOP | Q145: 70351 | R145: BRACADEIRA METALICA TIPO "U" DIAM. 3/4" | S145: Un | T145: 330
A146: S | B146: 3 | C146: S | D146: 0 | E146: 1 | F146: 6 | G146: 1 | H146: 0 | I146: 0 | J146: 0 | K146: 0 | L146: F | M146: Serviço | N146: Serviço | O146: 1.6.1.0.28. | P146: AGETOP | Q146: 70352 | R146: BRACADEIRA METALICA TIPO "U" DIAM. 1" | S146: Un | T146: 196
A147: S | B147: 3 | C147: S | D147: 0 | E147: 1 | F147: 6 | G147: 1 | H147: 0 | I147: 0 | J147: =IF(OR($C147="S",$C147=0),0,MATCH(0,OFFSET($D147,1,$C147,ROW($C$584)-ROW($C147)),0)) -> 0 | K147: =IF(OR($C147="S",$C147=0),0,MATCH(OFFSET($D147,0,$C147)+1,OFFSET($D147,1,$C147,ROW($C$584)-ROW($C147)),0)) -> 0 | L147: F | M147: Serviço | N147: Serviço | O147: 1.6.1.0.29. | P147: AGETOP | Q147: 70354 | R147: BRACADEIRA METALICA TIPO "U" DIAM. 1.1/2" | S147: Un | T147: 22
A148: S | B148: 3 | C148: S | D148: 0 | E148: 1 | F148: 6 | G148: 1 | H148: 0 | I148: 0 | J148: 0 | K148: 0 | L148: F | M148: Serviço | N148: Serviço | O148: 1.6.1.0.30. | P148: AGETOP | Q148: 70355 | R148: BRACADEIRA METALICA TIPO "U" DIAM. 2" | S148: Un | T148: 18
A149: S | B149: 3 | C149: S | D149: 0 | E149: 1 | F149: 6 | G149: 1 | H149: 0 | I149: 0 | J149: 0 | K149: 0 | L149: F | M149: Serviço | N149: Serviço | O149: 1.6.1.0.31. | P149: AGETOP | Q149: 70356 | R149: BRACADEIRA METALICA TIPO "U" DIAM. 2.1/2" | S149: Un | T149: 73
A150: S | B150: 3 | C150: S | D150: 0 | E150: 1 | F150: 6 | G150: 1 | H150: 0 | I150: 0 | J150: 0 | K150: 0 | L150: F | M150: Serviço | N150: Serviço | O150: 1.6.1.0.32. | P150: SINAPI | Q150: 91879 | R150: LUVA PARA ELETRODUTO, PVC, ROSCÁVEL, DN 25 MM (3/4"), PARA CIRCUITOS TERMINAIS, INSTALADA EM LAJE - FORNECIMENTO E INSTALAÇÃO. AF_12/2015 | S150: UN | T150: 330 | X150: Referência: AGETOP - 71741
A151: S | B151: 3 | C151: S | D151: 0 | E151: 1 | F151: 6 | G151: 1 | H151: 0 | I151: 0 | J151: 0 | K151: 0 | L151: F | M151: Serviço | N151: Serviço | O151: 1.6.1.0.33. | P151: SINAPI | Q151: 91880 | R151: LUVA PARA ELETRODUTO, PVC, ROSCÁVEL, DN 32 MM (1"), PARA CIRCUITOS TERMINAIS, INSTALADA EM LAJE - FORNECIMENTO E INSTALAÇÃO. AF_12/2015 | S151: UN | T151: 196 | X151: Referência: AGETOP - 71742
A152: S | B152: 3 | C152: S | D152: 0 | E152: 1 | F152: 6 | G152: 1 | H152: 0 | I152: 0 | J152: 0 | K152: 0 | L152: F | M152: Serviço | N152: Serviço | O152: 1.6.1.0.34. | P152: SINAPI | Q152: 93013 | R152: LUVA PARA ELETRODUTO, PVC, ROSCÁVEL, DN 50 MM (1 1/2") - FORNECIMENTO E INSTALAÇÃO. AF_12/2015 | S152: UN | T152: 22 | X152: Referência: AGETOP - 71744
A153: S | B153: 3 | C153: S | D153: 0 | E153: 1 | F153: 6 | G153: 1 | H153: 0 | I153: 0 | J153: 0 | K153: 0 | L153: F | M153: Serviço | N153: Serviço | O153: 1.6.1.0.35. | P153: SINAPI | Q153: 93014 | R153: LUVA PARA ELETRODUTO, PVC, ROSCÁVEL, DN 60 MM (2") - FORNECIMENTO E INSTALAÇÃO. AF_12/2015 | S153: UN | T153: 18 | X153: Referência: AGETOP - 71745
A154: S | B154: 3 | C154: S | D154: 0 | E154: 1 | F154: 6 | G154: 1 | H154: 0 | I154: 0 | J154: 0 | K154: 0 | L154: F | M154: Serviço | N154: Serviço | O154: 1.6.1.0.36. | P154: SINAPI | Q154: 93015 | R154: LUVA PARA ELETRODUTO, PVC, ROSCÁVEL, DN 75 MM (2 1/2") - FORNECIMENTO E INSTALAÇÃO. AF_12/2015 | S154: UN | T154: 73
A155: S | B155: 3 | C155: S | D155: 0 | E155: 1 | F155: 6 | G155: 1 | H155: 0 | I155: 0 | J155: 0 | K155: 0 | L155: F | M155: Serviço | N155: Serviço | O155: 1.6.1.0.37. | P155: SINAPI | Q155: 95801 | R155: CONDULETE DE ALUMÍNIO, TIPO X, PARA ELETRODUTO DE AÇO GALVANIZADO DN 20 MM (3/4''), APARENTE - FORNECIMENTO E INSTALAÇÃO. AF_11/2016_P | S155: UN | T155: 163 | X155: Referência: AGETOP - 70929
A156: S | B156: 3 | C156: S | D156: 0 | E156: 1 | F156: 6 | G156: 1 | H156: 0 | I156: 0 | J156: 0 | K156: 0 | L156: F | M156: Serviço | N156: Serviço | O156: 1.6.1.0.38. | P156: AGETOP | Q156: 72395 | R156: TAMPA CEGA PARA CONDULETE METÁLICO | S156: Un | T156: 163
A157: S | B157: 3 | C157: S | D157: 0 | E157: 1 | F157: 6 | G157: 1 | H157: 0 | I157: 0 | J157: 0 | K157: 0 | L157: F | M157: Serviço | N157: Serviço | O157: 1.6.1.0.39. | P157: SINAPI | Q157: 91993 | R157: TOMADA ALTA DE EMBUTIR (1 MÓDULO), 2P+T 20 A, INCLUINDO SUPORTE E PLACA - FORNECIMENTO E INSTALAÇÃO. AF_12/2015 | S157: UN | T157: 20 | X157: Referência: AGETOP - 72585
A158: S | B158: 3 | C158: S | D158: 0 | E158: 1 | F158: 6 | G158: 1 | H158: 0 | I158: 0 | J158: 0 | K158: 0 | L158: F | M158: Serviço | N158: Serviço | O158: 1.6.1.0.40. | P158: SINAPI | Q158: 91992 | R158: TOMADA ALTA DE EMBUTIR (1 MÓDULO), 2P+T 10 A, INCLUINDO SUPORTE E PLACA - FORNECIMENTO E INSTALAÇÃO. AF_12/2015 | S158: UN | T158: 10
A159: S | B159: 3 | C159: S | D159: 0 | E159: 1 | F159: 6 | G159: 1 | H159: 0 | I159: 0 | J159: 0 | K159: 0 | L159: F | M159: Serviço | N159: Serviço | O159: 1.6.1.0.41. | P159: SINAPI | Q159: 92004 | R159: TOMADA MÉDIA DE EMBUTIR (2 MÓDULOS), 2P+T 10 A, INCLUINDO SUPORTE E PLACA - FORNECIMENTO E INSTALAÇÃO. AF_12/2015 | S159: UN | T159: 9 | X159: Referência: AGETOP - 72578
A160: S | B160: 3 | C160: S | D160: 0 | E160: 1 | F160: 6 | G160: 1 | H160: 0 | I160: 0 | J160: 0 | K160: 0 | L160: F | M160: Serviço | N160: Serviço | O160: 1.6.1.0.42. | P160: SINAPI | Q160: 91996 | R160: TOMADA MÉDIA DE EMBUTIR (1 MÓDULO), 2P+T 10 A, INCLUINDO SUPORTE E PLACA - FORNECIMENTO E INSTALAÇÃO. AF_12/2015 | S160: UN | T160: 2 | X160: Referência: AGETOP - 72578
A161: S | B161: 3 | C161: S | D161: 0 | E161: 1 | F161: 6 | G161: 1 | H161: 0 | I161: 0 | J161: 0 | K161: 0 | L161: F | M161: Serviço | N161: Serviço | O161: 1.6.1.0.43. | P161: SINAPI | Q161: 92008 | R161: TOMADA BAIXA DE EMBUTIR (2 MÓDULOS), 2P+T 10 A, INCLUINDO SUPORTE E PLACA - FORNECIMENTO E INSTALAÇÃO. AF_12/2015 | S161: UN | T161: 16
A162: S | B162: 3 | C162: S | D162: 0 | E162: 1 | F162: 6 | G162: 1 | H162: 0 | I162: 0 | J162: 0 | K162: 0 | L162: F | M162: Serviço | N162: Serviço | O162: 1.6.1.0.44. | P162: SINAPI | Q162: 92000 | R162: TOMADA BAIXA DE EMBUTIR (1 MÓDULO), 2P+T 10 A, INCLUINDO SUPORTE E PLACA - FORNECIMENTO E INSTALAÇÃO. AF_12/2015 | S162: UN | T162: 53 | X162: Referência: AGETOP - 72578
A163: S | B163: 3 | C163: S | D163: 0 | E163: 1 | F163: 6 | G163: 1 | H163: 0 | I163: 0 | J163: 0 | K163: 0 | L163: F | M163: Serviço | N163: Serviço | O163: 1.6.1.0.45. | P163: SINAPI | Q163: 97585 | R163: LUMINÁRIA TIPO CALHA, DE SOBREPOR, COM 2 LÂMPADAS TUBULARES DE 18 W - FORNECIMENTO E INSTALAÇÃO. AF_11/2017 | S163: UN | T163: 236
A164: S | B164: 3 | C164: S | D164: 0 | E164: 1 | F164: 6 | G164: 1 | H164: 0 | I164: 0 | J164: 0 | K164: 0 | L164: F | M164: Serviço | N164: Serviço | O164: 1.6.1.0.46. | P164: SINAPI | Q164: 97601 | R164: REFLETOR EM ALUMÍNIO COM SUPORTE E ALÇA, LÂMPADA 250 W - FORNECIMENTO E INSTALAÇÃO. AF_11/2017 | S164: UN | T164: 14
A165: S | B165: 3 | C165: S | D165: 0 | E165: 1 | F165: 6 | G165: 1 | H165: 0 | I165: 0 | J165: 0 | K165: 0 | L165: F | M165: Serviço | N165: Serviço | O165: 1.6.1.0.47. | P165: SINAPI | Q165: 73831/5 | R165: LAMPADA MISTA DE 250W - FORNECIMENTO E INSTALACAO | S165: UN | T165: 14
A166: S | B166: 3 | C166: S | D166: 0 | E166: 1 | F166: 6 | G166: 1 | H166: 0 | I166: 0 | J166: 0 | K166: 0 | L166: F | M166: Serviço | N166: Serviço | O166: 1.6.1.0.48. | P166: SINAPI | Q166: 97606 | R166: LUMINÁRIA ARANDELA TIPO MEIA-LUA, PARA 1 LÂMPADA DE 15 W - FORNECIMENTO E INSTALAÇÃO. AF_11/2017 | S166: UN | T166: 2
A167: S | B167: 3 | C167: S | D167: 0 | E167: 1 | F167: 6 | G167: 1 | H167: 0 | I167: 0 | J167: 0 | K167: 0 | L167: F | M167: Serviço | N167: Serviço | O167: 1.6.1.0.49. | P167: SINAPI | Q167: 97610 | R167: LÂMPADA COMPACTA DE LED 10 W, BASE E27 - FORNECIMENTO E INSTALAÇÃO. AF_11/2017 | S167: UN | T167: 2
A168: S | B168: 3 | C168: S | D168: 0 | E168: 1 | F168: 6 | G168: 1 | H168: 0 | I168: 0 | J168: 0 | K168: 0 | L168: F | M168: Serviço | N168: Serviço | O168: 1.6.1.0.50. | P168: SINAPI | Q168: 91953 | R168: INTERRUPTOR SIMPLES (1 MÓDULO), 10A/250V, INCLUINDO SUPORTE E PLACA - FORNECIMENTO E INSTALAÇÃO. AF_12/2015 | S168: UN | T168: 24 | X168: Referência: AGETOP - 71440
A169: S | B169: 3 | C169: S | D169: 0 | E169: 1 | F169: 6 | G169: 1 | H169: 0 | I169: 0 | J169: 0 | K169: 0 | L169: F | M169: Serviço | N169: Serviço | O169: 1.6.1.0.51. | P169: SINAPI | Q169: 91959 | R169: INTERRUPTOR SIMPLES (2 MÓDULOS), 10A/250V, INCLUINDO SUPORTE E PLACA - FORNECIMENTO E INSTALAÇÃO. AF_12/2015 | S169: UN | T169: 17 | X169: Referência: AGETOP - 71441
A170: S | B170: 3 | C170: S | D170: 0 | E170: 1 | F170: 6 | G170: 1 | H170: 0 | I170: 0 | J170: 0 | K170: 0 | L170: F | M170: Serviço | N170: Serviço | O170: 1.6.1.0.52. | P170: SINAPI | Q170: 91961 | R170: INTERRUPTOR PARALELO (2 MÓDULOS), 10A/250V, INCLUINDO SUPORTE E PLACA - FORNECIMENTO E INSTALAÇÃO. AF_12/2015 | S170: UN | T170: 6
A171: S | B171: 3 | C171: S | D171: 0 | E171: 1 | F171: 6 | G171: 1 | H171: 0 | I171: 0 | J171: 0 | K171: 0 | L171: F | M171: Serviço | N171: Serviço | O171: 1.6.1.0.53. | P171: SINAPI | Q171: 91967 | R171: INTERRUPTOR SIMPLES (3 MÓDULOS), 10A/250V, INCLUINDO SUPORTE E PLACA - FORNECIMENTO E INSTALAÇÃO. AF_12/2015 | S171: UN | T171: 4 | X171: Referência: AGETOP - 71442
A172: S | B172: 3 | C172: S | D172: 0 | E172: 1 | F172: 6 | G172: 1 | H172: 0 | I172: 0 | J172: 0 | K172: 0 | L172: F | M172: Serviço | N172: Serviço | O172: 1.6.1.0.54. | P172: SINAPI | Q172: 97891 | R172: CAIXA ENTERRADA ELÉTRICA RETANGULAR, EM ALVENARIA COM BLOCOS DE CONCRETO, FUNDO COM BRITA, DIMENSÕES INTERNAS: 0,4X0,4X0,4 M. AF_05/2018 | S172: UN | T172: 3
A173: S | B173: 3 | C173: S | D173: 0 | E173: 1 | F173: 6 | G173: 1 | H173: 0 | I173: 0 | J173: 0 | K173: 0 | L173: F | M173: Serviço | N173: Serviço | O173: 1.6.1.0.55. | P173: SINAPI | Q173: 6171 | R173: TAMPA DE CONCRETO ARMADO 60X60X5CM PARA CAIXA | S173: UN | T173: 3
A174: S | B174: 3 | C174: S | D174: 0 | E174: 1 | F174: 6 | G174: 1 | H174: 0 | I174: 0 | J174: 0 | K174: 0 | L174: F | M174: Serviço | N174: Serviço | O174: 1.6.1.0.56. | P174: AGETOP | Q174: 71861 | R174: PARAFUSO P/BUCHA S-6 | S174: Un | T174: 556
A175: S | B175: 3 | C175: S | D175: 0 | E175: 1 | F175: 6 | G175: 1 | H175: 0 | I175: 0 | J175: 0 | K175: 0 | L175: F | M175: Serviço | N175: Serviço | O175: 1.6.1.0.57. | P175: AGETOP | Q175: 70647 | R175: CAIXA DE PASSAGEM METÁLICA DE EMBUTIR 30X30X12 CM | S175: Un | T175: 3
A176: S | B176: 3 | C176: S | D176: 0 | E176: 1 | F176: 6 | G176: 1 | H176: 0 | I176: 0 | J176: 0 | K176: 0 | L176: F | M176: Serviço | N176: Serviço | O176: 1.6.1.0.58. | P176: AGETOP | Q176: 70391 | R176: BUCHA DE NYLON S-6 | S176: Un | T176: 556
A177: S | B177: 3 | C177: S | D177: 0 | E177: 1 | F177: 6 | G177: 1 | H177: 0 | I177: 0 | J177: 0 | K177: 0 | L177: F | M177: Serviço | N177: Serviço | O177: 1.6.1.0.59. | P177: AGETOP | Q177: 20162 | R177: DEMOLIÇÃO DAS INSTALAÇÕES ELÉTRICAS E AFINS C/ TRANSP. ATÉ CB. E CARGA | S177: H | T177: 40
A178: 3 | B178: 3 | C178: 3 | D178: 10 | E178: 1 | F178: 6 | G178: 2 | H178: 0 | I178: 0 | J178: 49 | K178: 10 | L178: F | M178: Nível 3 | N178: Nível 3 | O178: 1.6.2. | Q178: IMPLANTAÇÃO | R178: IMPLANTAÇÃO | S178: -
A179: S | B179: 3 | C179: S | D179: 0 | E179: 1 | F179: 6 | G179: 2 | H179: 0 | I179: 0 | J179: 0 | K179: 0 | L179: F | M179: Serviço | N179: Serviço | O179: 1.6.2.0.1. | P179: SINAPI | Q179: 93669 | R179: DISJUNTOR TRIPOLAR TIPO DIN, CORRENTE NOMINAL DE 20A - FORNECIMENTO E INSTALAÇÃO. AF_04/2016 | S179: UN | T179: 1
A180: S | B180: 3 | C180: S | D180: 0 | E180: 1 | F180: 6 | G180: 2 | H180: 0 | I180: 0 | J180: 0 | K180: 0 | L180: F | M180: Serviço | N180: Serviço | O180: 1.6.2.0.2. | P180: SINAPI | Q180: 91930 | R180: CABO DE COBRE FLEXÍVEL ISOLADO, 6 MM², ANTI-CHAMA 450/750 V, PARA CIRCUITOS TERMINAIS - FORNECIMENTO E INSTALAÇÃO. AF_12/2015 | S180: M | T180: 423 | X180: Referência: AGETOP - 70565
A181: S | B181: 3 | C181: S | D181: 0 | E181: 1 | F181: 6 | G181: 2 | H181: 0 | I181: 0 | J181: 0 | K181: 0 | L181: F | M181: Serviço | N181: Serviço | O181: 1.6.2.0.3. | P181: SINAPI | Q181: 91872 | R181: ELETRODUTO RÍGIDO ROSCÁVEL, PVC, DN 32 MM (1"), PARA CIRCUITOS TERMINAIS, INSTALADO EM PAREDE - FORNECIMENTO E INSTALAÇÃO. AF_12/2015 | S181: M | T181: 85 | X181: Referência: AGETOP - 71202
A182: S | B182: 3 | C182: S | D182: 0 | E182: 1 | F182: 6 | G182: 2 | H182: 0 | I182: 0 | J182: 0 | K182: 0 | L182: F | M182: Serviço | N182: Serviço | O182: 1.6.2.0.4. | P182: AGETOP | Q182: 70352 | R182: BRACADEIRA METALICA TIPO "U" DIAM. 1" | S182: Un | T182: 29
A183: S | B183: 3 | C183: S | D183: 0 | E183: 1 | F183: 6 | G183: 2 | H183: 0 | I183: 0 | J183: 0 | K183: 0 | L183: F | M183: Serviço | N183: Serviço | O183: 1.6.2.0.5. | P183: SINAPI | Q183: 91880 | R183: LUVA PARA ELETRODUTO, PVC, ROSCÁVEL, DN 32 MM (1"), PARA CIRCUITOS TERMINAIS, INSTALADA EM LAJE - FORNECIMENTO E INSTALAÇÃO. AF_12/2015 | S183: UN | T183: 29 | X183: Referência: AGETOP - 71742
A184: S | B184: 3 | C184: S | D184: 0 | E184: 1 | F184: 6 | G184: 2 | H184: 0 | I184: 0 | J184: 0 | K184: 0 | L184: F | M184: Serviço | N184: Serviço | O184: 1.6.2.0.6. | P184: SINAPI | Q184: 97891 | R184: CAIXA ENTERRADA ELÉTRICA RETANGULAR, EM ALVENARIA COM BLOCOS DE CONCRETO, FUNDO COM BRITA, DIMENSÕES INTERNAS: 0,4X0,4X0,4 M. AF_05/2018 | S184: UN | T184: 1
A185: S | B185: 3 | C185: S | D185: 0 | E185: 1 | F185: 6 | G185: 2 | H185: 0 | I185: 0 | J185: 0 | K185: 0 | L185: F | M185: Serviço | N185: Serviço | O185: 1.6.2.0.7. | P185: SINAPI | Q185: 6171 | R185: TAMPA DE CONCRETO ARMADO 60X60X5CM PARA CAIXA | S185: UN | T185: 1
A186: S | B186: 3 | C186: S | D186: 0 | E186: 1 | F186: 6 | G186: 2 | H186: 0 | I186: 0 | J186: 0 | K186: 0 | L186: F | M186: Serviço | N186: Serviço | O186: 1.6.2.0.8. | P186: AGETOP | Q186: 71861 | R186: PARAFUSO P/BUCHA S-6 | S186: Un | T186: 66
A187: S | B187: 3 | C187: S | D187: 0 | E187: 1 | F187: 6 | G187: 2 | H187: 0 | I187: 0 | J187: 0 | K187: 0 | L187: F | M187: Serviço | N187: Serviço | O187: 1.6.2.0.9. | P187: AGETOP | Q187: 70391 | R187: BUCHA DE NYLON S-6 | S187: Un | T187: 66
A188: 3 | B188: 3 | C188: 3 | D188: 39 | E188: 1 | F188: 6 | G188: 3 | H188: 0 | I188: 0 | J188: 39 | K188: 124 | L188: F | M188: Nível 3 | N188: Nível 3 | O188: 1.6.3. | P188: SINAPI | R188: SUBESTAÇÃO | S188: -
A189: S | B189: 3 | C189: S | D189: 0 | E189: 1 | F189: 6 | G189: 3 | H189: 0 | I189: 0 | J189: 0 | K189: 0 | L189: F | M189: Serviço | N189: Serviço | O189: 1.6.3.0.1. | P189: AGETOP | Q189: 70386 | R189: BRAÇO C AÇO GALVANIZADO , CONFORME NTD-17 | S189: un | T189: 1
A190: S | B190: 3 | C190: S | D190: 0 | E190: 1 | F190: 6 | G190: 3 | H190: 0 | I190: 0 | J190: 0 | K190: 0 | L190: F | M190: Serviço | N190: Serviço | O190: 1.6.3.0.2. | P190: SINAPI | Q190: 73767/2 | R190: ALCA PRE-FORMADA DISTRIBUIÇÃO EM ACO RECOBERTO COM ALUMINIO PARA CABO 25MM2, ENCAPADO. FORNECIMENTO E INSTALAÇÃO. | S190: UN | T190: 1
A191: S | B191: 3 | C191: S | D191: 0 | E191: 1 | F191: 6 | G191: 3 | H191: 0 | I191: 0 | J191: 0 | K191: 0 | L191: F | M191: Serviço | N191: Serviço | O191: 1.6.3.0.3. | P191: SINAPI | Q191: 73767/1 | R191: GRAMPO PARALELO EM ALUMINIO FUNDIDO OU ESTRUDADO DE 2 PARAFUSOS, PARA CABO DE 6 A 50 MM2, PASTA ANTIOXIDANTE. FORNEC E INSTALAÇÃO. | S191: UN | T191: 3
A192: S | B192: 3 | C192: S | D192: 0 | E192: 1 | F192: 6 | G192: 3 | H192: 0 | I192: 0 | J192: 0 | K192: 0 | L192: F | M192: Serviço | N192: Serviço | O192: 1.6.3.0.4. | P192: SINAPI | Q192: 83377 | R192: CONECTOR DE PARAFUSO FENDIDO EM LIGA DE COBRE COM SEPARADOR DE CABOS PARA CABO 50 MM2 - FORNECIMENTO E INSTALACAO | S192: UN | T192: 6
A193: S | B193: 3 | C193: S | D193: 0 | E193: 1 | F193: 6 | G193: 3 | H193: 0 | I193: 0 | J193: 0 | K193: 0 | L193: F | M193: Serviço | N193: Serviço | O193: 1.6.3.0.5. | P193: SINAPI | Q193: 72263 | R193: TERMINAL OU CONECTOR DE PRESSAO - PARA CABO 50MM2 - FORNECIMENTO E INSTALACAO | S193: UN | T193: 1
A194: S | B194: 3 | C194: S | D194: 0 | E194: 1 | F194: 6 | G194: 3 | H194: 0 | I194: 0 | J194: 0 | K194: 0 | L194: F | M194: Serviço | N194: Serviço | O194: 1.6.3.0.6. | P194: AGETOP | Q194: 71833 | R194: PARA RAIOS DISTRIBUIDOR POLIMÉRICO ÓXIDO DE ZINCO S/CENTELHADOR C/ DESLIGAMENTO AUTOMÁTICO 15KV,10KA | S194: Un | T194: 3
A195: S | B195: 3 | C195: S | D195: 0 | E195: 1 | F195: 6 | G195: 3 | H195: 0 | I195: 0 | J195: 0 | K195: 0 | L195: F | M195: Serviço | N195: Serviço | O195: 1.6.3.0.7. | P195: SINAPI | Q195: 88544 | R195: ARMACAO SECUNDARIA OU REX COMPLETA PARA DUAS LINHAS-FORNECIMENTO E INSTALACAO. | S195: UN | T195: 1
A196: S | B196: 3 | C196: S | D196: 0 | E196: 1 | F196: 6 | G196: 3 | H196: 0 | I196: 0 | J196: 0 | K196: 0 | L196: F | M196: Serviço | N196: Serviço | O196: 1.6.3.0.8. | P196: COMPOSIÇÃO | Q196: COMP 046_SEE | R196: CAPUZ PARA PROTEÇÃO DOS PARA RAIOS | S196: UN | T196: 3
A197: S | B197: 3 | C197: S | D197: 0 | E197: 1 | F197: 6 | G197: 3 | H197: 0 | I197: 0 | J197: 0 | K197: 0 | L197: F | M197: Serviço | N197: Serviço | O197: 1.6.3.0.9. | P197: COMPOSIÇÃO | Q197: COMP 047_SEE | R197: CAPUZ DE PROTEÇÃO PARA BUCHA DE TRANSFORMADOR | S197: UN | T197: 3
A198: S | B198: 3 | C198: S | D198: 0 | E198: 1 | F198: 6 | G198: 3 | H198: 0 | I198: 0 | J198: 0 | K198: 0 | L198: F | M198: Serviço | N198: Serviço | O198: 1.6.3.0.10. | P198: COMPOSIÇÃO | Q198: COMP 048_SEE | R198: HASTE ROSQUEADA "TIRANTE" 3/8" | S198: M | T198: 0.5
A199: S | B199: 3 | C199: S | D199: 0 | E199: 1 | F199: 6 | G199: 3 | H199: 0 | I199: 0 | J199: 0 | K199: 0 | L199: F | M199: Serviço | N199: Serviço | O199: 1.6.3.0.11. | P199: COMPOSIÇÃO | Q199: COMP 049_SEE | R199: PORCA SEXTAVADA 3/8" | S199: UN | T199: 8
A200: S | B200: 3 | C200: S | D200: 0 | E200: 1 | F200: 6 | G200: 3 | H200: 0 | I200: 0 | J200: 0 | K200: 0 | L200: F | M200: Serviço | N200: Serviço | O200: 1.6.3.0.12. | P200: SINAPI | Q200: 73781/2 | R200: ISOLADOR DE PINO TP HI-POT CILINDRICO CLASSE 15KV. FORNECIMENTO E INSTALACAO. | S200: UN | T200: 3
A201: S | B201: 3 | C201: S | D201: 0 | E201: 1 | F201: 6 | G201: 3 | H201: 0 | I201: 0 | J201: 0 | K201: 0 | L201: F | M201: Serviço | N201: Serviço | O201: 1.6.3.0.13. | P201: SINAPI | Q201: 73781/3 | R201: ISOLADOR DE SUSPENSAO (DISCO) TP CAVILHA CLASSE 15KV - 6''. FORNECIMENTO E INSTALACAO. | S201: UN | T201: 1
A202: S | B202: 3 | C202: S | D202: 0 | E202: 1 | F202: 6 | G202: 3 | H202: 0 | I202: 0 | J202: 0 | K202: 0 | L202: F | M202: Serviço | N202: Serviço | O202: 1.6.3.0.14. | P202: AGETOP | Q202: 70252 | R202: ARRUELA LISA D=5/16" | S202: Un | T202: 8
A203: S | B203: 3 | C203: S | D203: 0 | E203: 1 | F203: 6 | G203: 3 | H203: 0 | I203: 0 | J203: 0 | K203: 0 | L203: F | M203: Serviço | N203: Serviço | O203: 1.6.3.0.15. | P203: AGETOP | Q203: 70720 | R203: CAIXA METÁLICA PARA MEDIDOR POLIFÁSICO PADRÃO ENEL 500X380X166MM | S203: Un | T203: 1
A204: S | B204: 3 | C204: S | D204: 0 | E204: 1 | F204: 6 | G204: 3 | H204: 0 | I204: 0 | J204: 0 | K204: 0 | L204: F | M204: Serviço | N204: Serviço | O204: 1.6.3.0.16. | P204: AGETOP | Q204: 70695 | R204: CAIXA METÁLICA PARA PROTEÇÃO GERAL 580X500X216MM ATÉ 175A | S204: Un | T204: 1
A205: S | B205: 3 | C205: S | D205: 0 | E205: 1 | F205: 6 | G205: 3 | H205: 0 | I205: 0 | J205: 0 | K205: 0 | L205: F | M205: Serviço | N205: Serviço | O205: 1.6.3.0.17. | P205: AGETOP | Q205: 70725 | R205: CAIXA METÁLICA PARA T.C. 580X500X216MM - ATÉ 175A | S205: Un | T205: 1
A206: S | B206: 3 | C206: S | D206: 0 | E206: 1 | F206: 6 | G206: 3 | H206: 0 | I206: 0 | J206: 0 | K206: 0 | L206: F | M206: Serviço | N206: Serviço | O206: 1.6.3.0.18. | P206: SINAPI | Q206: 93205 | R206: CINTA DE AMARRAÇÃO DE ALVENARIA MOLDADA IN LOCO COM UTILIZAÇÃO DE BLOCOS CANALETA. AF_03/2016 | S206: M | T206: 6
... 451 more rows

Sheet Resumo
B3: UNIDADE ESCOLAR | G3: CÓDIGO INEP
B4: =Orçamento!$O$4 -> COLÉGIO ESTADUAL CARLOS DRUMOND DE ANDRADE | G4: =Orçamento!V4 -> 52092127
B6: OBRA | G6: CIDADE
B7: =Orçamento!$O$7 -> REFORMA | G7: =Orçamento!$V$7 -> NOVO GAMA
B9: ENDEREÇO | G9: CRE
B10: =Orçamento!$R$10 -> AV. SEBASTIÃO VARGAS FILHO QD 08 S/N VALE DO PEDREGA, VALE DO PEDREGAL, CEP:72860-785 | G10: =Orçamento!$O$10 -> NOVO GAMA
B12: REFERÊNCIA | D12: DATA | G12: ÁREA TOTAL CONSTRUÍDA (M²)
B13: =CONCATENATE("AGETOP E SINAPI - ",Orçamento!$W$10) -> AGETOP E SINAPI - ONERADA | D13: =Orçamento!$S$7 -> 2020-09-02 | G13: =Orçamento!$S$13 -> 2668.12
A14: FILTRO
B15: RESUMO GERAL DO ORÇAMENTO
A16: ↓ | B16: ITEM | C16: DESCRIÇÃO DOS SERVIÇOS | E16: UNID | F16: QUANT | G16: PREÇO SEM BDI | H16: PREÇO COM BDI | I16: PARTICIP. (%)
A17: =IF(E17>0,"F","") -> F | B17: 1. | C17: =Orçamento!$P637 -> REFORMA | E17: UN | F17: 1 | G17: =IFERROR(Orçamento!S637,"-") -> 0 | H17: =IFERROR(Orçamento!V637,"") -> 0 | I17: =Orçamento!X637 -> 
A18: =IF(E18>0,"F","") -> F | B18: 2. | C18: =Orçamento!$P638 -> PÁTIO MULTIUSO - PADRÃO SEDUC - OPÇÃO 2 | E18: UN | F18: 1 | G18: =IFERROR(Orçamento!S638,"-") -> 0 | H18: =IFERROR(Orçamento!V638,"") -> 0 | I18: =Orçamento!X638 -> 
A19: F | B19: 3. | C19: =Orçamento!$P639 -> QUADRA COBERTA PADRÃO NOSSA ESCOLA - MOD 02 | E19: UN | F19: 1 | G19: =IFERROR(Orçamento!S639,"-") -> 0 | H19: =IFERROR(Orçamento!V639,"") -> 0 | I19: =Orçamento!X639 -> 
B20: 4. | C20: =Orçamento!$P640 ->  | G20: =IFERROR(Orçamento!S640,"-") -> 0 | H20: =IFERROR(Orçamento!V640,"") -> 0 | I20: =Orçamento!X640 -> 
B21: 5. | C21: =Orçamento!$P641 ->  | G21: =IFERROR(Orçamento!S641,"-") -> 0 | H21: =IFERROR(Orçamento!V641,"") -> 0 | I21: =Orçamento!X641 -> 
B22: 6. | C22: =Orçamento!$P642 ->  | G22: =IFERROR(Orçamento!S642,"-") -> 0 | H22: =IFERROR(Orçamento!V642,"") -> 0 | I22: =Orçamento!X642 -> 
B23: 7. | C23: =Orçamento!$P643 ->  | G23: =IFERROR(Orçamento!S643,"-") -> 0 | H23: =IFERROR(Orçamento!V643,"") -> 0 | I23: =Orçamento!X643 -> 
B24: 8. | C24: =Orçamento!$P644 ->  | G24: =IFERROR(Orçamento!S644,"-") -> 0 | H24: =IFERROR(Orçamento!V644,"") -> 0 | I24: =Orçamento!X644 -> 
B25: 9. | C25: =Orçamento!$P645 ->  | G25: =IFERROR(Orçamento!S645,"-") -> 0 | H25: =IFERROR(Orçamento!V645,"") -> 0 | I25: =Orçamento!X645 -> 
B26: 10. | C26: =Orçamento!$P646 ->  | G26: =IFERROR(Orçamento!S646,"-") -> 0 | H26: =IFERROR(Orçamento!V646,"") -> 0 | I26: =Orçamento!X646 -> 
B27: 11. | C27: =Orçamento!$P647 ->  | G27: =IFERROR(Orçamento!S647,"-") -> 0 | H27: =IFERROR(Orçamento!V647,"") -> 0 | I27: =Orçamento!X647 -> 
B28: 12. | C28: =Orçamento!$P648 ->  | G28: =IFERROR(Orçamento!S648,"-") -> 0 | H28: =IFERROR(Orçamento!V648,"") -> 0 | I28: =Orçamento!X648 -> 
B29: 13. | C29: =Orçamento!$P649 ->  | G29: =IFERROR(Orçamento!S649,"-") -> 0 | H29: =IFERROR(Orçamento!V649,"") -> 0 | I29: =Orçamento!X649 -> 
B30: 14. | C30: =Orçamento!$P650 ->  | G30: =IFERROR(Orçamento!S650,"-") -> 0 | H30: =IFERROR(Orçamento!V650,"") -> 0 | I30: =Orçamento!X650 -> 
B31: 15. | C31: =Orçamento!$P651 ->  | G31: =IFERROR(Orçamento!S651,"-") -> 0 | H31: =IFERROR(Orçamento!V651,"") -> 0 | I31: =Orçamento!X651 -> 
B32: 16. | C32: =Orçamento!$P652 ->  | G32: =IFERROR(Orçamento!S652,"-") -> 0 | H32: =IFERROR(Orçamento!V652,"") -> 0 | I32: =Orçamento!X652 -> 
B33: 17. | C33: =Orçamento!$P653 ->  | G33: =IFERROR(Orçamento!S653,"-") -> 0 | H33: =IFERROR(Orçamento!V653,"") -> 0 | I33: =Orçamento!X653 -> 
B34: 18. | C34: =Orçamento!$P654 ->  | G34: =IFERROR(Orçamento!S654,"-") -> 0 | H34: =IFERROR(Orçamento!V654,"") -> 0 | I34: =Orçamento!X654 -> 
B35: 19. | C35: =Orçamento!$P655 ->  | G35: =IFERROR(Orçamento!S655,"-") -> 0 | H35: =IFERROR(Orçamento!V655,"") -> 0 | I35: =Orçamento!X655 -> 
B36: 20. | C36: =Orçamento!$P656 ->  | G36: =IFERROR(Orçamento!S656,"-") -> 0 | H36: =IFERROR(Orçamento!V656,"") -> 0 | I36: =Orçamento!X656 -> 
A37: F | B37: TOTAL GERAL DO ORÇAMENTO (R$) | G37: =SUM(G17:G36) -> 0 | H37: 0 | I37: =SUM(I17:I36) -> 
A38: F
A39: F

Sheet Somatório
B3: UNIDADE ESCOLAR | E3: CÓDIGO INEP
B4: =Orçamento!$O$4 -> COLÉGIO ESTADUAL CARLOS DRUMOND DE ANDRADE | E4: =Orçamento!V4 -> 52092127
B6: OBRA | E6: CIDADE
B7: =Orçamento!$O$7 -> REFORMA | E7: =Orçamento!$V$7 -> NOVO GAMA
B9: ENDEREÇO | E9: CRE
B10: =Orçamento!$R$10 -> AV. SEBASTIÃO VARGAS FILHO QD 08 S/N VALE DO PEDREGA, VALE DO PEDREGAL, CEP:72860-785 | E10: =Orçamento!$O$10 -> NOVO GAMA
B12: REFERÊNCIA | D12: DATA | E12: ÁREA TOTAL CONSTRUÍDA (M²)
B13: =CONCATENATE("AGETOP E SINAPI - ",Orçamento!$W$10) -> AGETOP E SINAPI - ONERADA | D13: =Orçamento!$S$7 -> 2020-09-02 | E13: =Orçamento!$S$13 -> 2668.12
A14: FILTRO
B15: SOMATÓRIO DE SERVIÇOS
A16: ↓ | B16: ITEM | C16: DESCRIÇÃO DOS SERVIÇOS | D16: PREÇO SEM BDI (R$) | E16: PREÇO COM BDI (R$) | F16: PARTIC. ( % )
A17: =IF(D17>0,"F","") ->  | B17: a. | C17: =Orçamento!P603 -> SERVIÇOS PRELIMINARES | D17: =Orçamento!S603 -> 0 | E17: =Orçamento!V603 -> 0 | F17: =Orçamento!X603 -> 0
A18: =IF(D18>0,"F","") ->  | B18: b. | C18: =Orçamento!P604 -> TRANSPORTES | D18: =Orçamento!S604 -> 0 | E18: =Orçamento!V604 -> 0 | F18: =Orçamento!X604 -> 0
B19: c. | C19: =Orçamento!P605 -> SERVIÇO EM TERRA | D19: =Orçamento!S605 -> 0 | E19: =Orçamento!V605 -> 0 | F19: =Orçamento!X605 -> 0
B20: d. | C20: =Orçamento!P606 -> FUNDAÇÕES E SONDAGENS | D20: =Orçamento!S606 -> 0 | E20: =Orçamento!V606 -> 0 | F20: =Orçamento!X606 -> 0
B21: e. | C21: =Orçamento!P607 -> ESTRUTURA | D21: =Orçamento!S607 -> 0 | E21: =Orçamento!V607 -> 0 | F21: =Orçamento!X607 -> 0
B22: f. | C22: =Orçamento!P608 -> INSTALAÇÕES ELÉTRICAS | D22: =Orçamento!S608 -> 0 | E22: =Orçamento!V608 -> 0 | F22: =Orçamento!X608 -> 0
B23: g. | C23: =Orçamento!P609 -> INSTALAÇÕES HIDROSSANITÁRIAS | D23: =Orçamento!S609 -> 0 | E23: =Orçamento!V609 -> 0 | F23: =Orçamento!X609 -> 0
B24: h. | C24: =Orçamento!P610 -> INSTALAÇÕES ESPECIAIS | D24: =Orçamento!S610 -> 0 | E24: =Orçamento!V610 -> 0 | F24: =Orçamento!X610 -> 0
B25: i. | C25: =Orçamento!P611 -> ALVENARIAS E DIVISÓRIAS | D25: =Orçamento!S611 -> 0 | E25: =Orçamento!V611 -> 0 | F25: =Orçamento!X611 -> 0
B26: j. | C26: =Orçamento!P612 -> ALVENARIA AUTO-PORTANTE | D26: =Orçamento!S612 -> 0 | E26: =Orçamento!V612 -> 0 | F26: =Orçamento!X612 -> 0
B27: k. | C27: =Orçamento!P613 -> IMPERMEABILIZAÇÃO | D27: =Orçamento!S613 -> 0 | E27: =Orçamento!V613 -> 0 | F27: =Orçamento!X613 -> 0
B28: l. | C28: =Orçamento!P614 -> ISOLAMENTO TÉRMICO E ACÚSTICO | D28: =Orçamento!S614 -> 0 | E28: =Orçamento!V614 -> 0 | F28: =Orçamento!X614 -> 0
B29: m. | C29: =Orçamento!P615 -> ESTRUTURA DE MADEIRA | D29: =Orçamento!S615 -> 0 | E29: =Orçamento!V615 -> 0 | F29: =Orçamento!X615 -> 0
B30: n. | C30: =Orçamento!P616 -> ESTRUTURAS METÁLICAS | D30: =Orçamento!S616 -> 0 | E30: =Orçamento!V616 -> 0 | F30: =Orçamento!X616 -> 0
B31: o. | C31: =Orçamento!P617 -> COBERTURAS | D31: =Orçamento!S617 -> 0 | E31: =Orçamento!V617 -> 0 | F31: =Orçamento!X617 -> 0
B32: p. | C32: =Orçamento!P618 -> ESQUADRIAS DE MADEIRA | D32: =Orçamento!S618 -> 0 | E32: =Orçamento!V618 -> 0 | F32: =Orçamento!X618 -> 0
B33: q. | C33: =Orçamento!P619 -> ESQUADRIAS METÁLICAS | D33: =Orçamento!S619 -> 0 | E33: =Orçamento!V619 -> 0 | F33: =Orçamento!X619 -> 0
B34: r. | C34: =Orçamento!P620 -> VIDROS | D34: =Orçamento!S620 -> 0 | E34: =Orçamento!V620 -> 0 | F34: =Orçamento!X620 -> 0
B35: s. | C35: =Orçamento!P621 -> REVESTIMENTO DE PAREDE | D35: =Orçamento!S621 -> 0 | E35: =Orçamento!V621 -> 0 | F35: =Orçamento!X621 -> 0
B36: t. | C36: =Orçamento!P622 -> FORROS | D36: =Orçamento!S622 -> 0 | E36: =Orçamento!V622 -> 0 | F36: =Orçamento!X622 -> 0
B37: u. | C37: =Orçamento!P623 -> REVESTIMENTO DE PISO | D37: =Orçamento!S623 -> 0 | E37: =Orçamento!V623 -> 0 | F37: =Orçamento!X623 -> 0
B38: v. | C38: =Orçamento!P624 -> FERRAGENS | D38: =Orçamento!S624 -> 0 | E38: =Orçamento!V624 -> 0 | F38: =Orçamento!X624 -> 0
B39: w. | C39: =Orçamento!P625 -> MARCENARIA | D39: =Orçamento!S625 -> 0 | E39: =Orçamento!V625 -> 0 | F39: =Orçamento!X625 -> 0
B40: x. | C40: =Orçamento!P626 -> ADMINISTRAÇÃO | D40: =Orçamento!S626 -> 0 | E40: =Orçamento!V626 -> 0 | F40: =Orçamento!X626 -> 0
B41: y. | C41: =Orçamento!P627 -> PINTURA | D41: =Orçamento!S627 -> 0 | E41: =Orçamento!V627 -> 0 | F41: =Orçamento!X627 -> 0
B42: z. | C42: =Orçamento!P628 -> DIVERSOS | D42: =Orçamento!S628 -> 0 | E42: =Orçamento!V628 -> 0 | F42: =Orçamento!X628 -> 0
A43: F | B43: TOTAL GERAL DO ORÇAMENTO | D43: =SUM(D17:D42) -> 0 | E43: =SUM(E17:E42) -> 0 | F43: =SUM(F17:F42) -> 0
B45: (*) Para itens da AGETOP, os vidros não estão inclusos nas esquadrias e já foram considerados os custos de contramarco para as esquadrias de alumínio;

Sheet Cronog_120_Dias
B3: UNIDADE ESCOLAR | I3: PRAZO
B4: =Orçamento!$O$4 -> COLÉGIO ESTADUAL CARLOS DRUMOND DE ANDRADE | I4: 120 DIAS CORRIDOS
B6: OBRA | I6: DATA
B7: =Orçamento!$O$7 -> REFORMA | I7: =Orçamento!$S$7 -> 2020-09-02
B9: LOCAL | I9: ÁREA TOTAL CONSTRUÍDA (M²)
A10: FILTRO | B10: =Orçamento!$V$7 -> NOVO GAMA | I10: =Orçamento!$S$13 -> 2668.12
B12: CRONOGRAMA - FÍSICO FINANCEIRO
A13: ↓ | B13: CUSTO TOTAL: | C13: =D93 -> 0 | D13: VALOR | E13: Dias: | F13: 30 | J13: 60 | N13: 90 | R13: 120 | V13: TOTAL
B14: DESCRIÇÃO DOS SERVIÇOS | E14: % | F14: 1ª PARCELA | J14: 2ª PARCELA | N14: 3ª PARCELA | R14: 4ª PARCELA
A15: =IF(D15>0,"F","") ->  | B15: SERVIÇOS PRELIMINARES | D15: =Orçamento!V603 -> 0 | E15: =Orçamento!X603 -> 0 | F15: =ROUND(F17*$D$15,2) -> 0 | J15: =ROUND(J17*$D$15,2) -> 0 | N15: =ROUND(N17*$D$15,2) -> 0 | R15: =ROUND(R17*$D$15,2) -> 0 | V15: =SUM(F15:U15) -> 0 | W15: =IF(V15=D15,"OK","ERRO") -> OK
A16: =IF(A15="F",A15,"") -> 
A17: =IF(A16="F",A16,"") ->  | F17: 0.245 | J17: =F17 -> 0.245 | N17: 0.23 | R17: =1-SUM(F17:Q17) -> 0.28 | V17: =IFERROR(E15/100,"") -> 0 | W17: =IF(SUM(F17:U17)=100%,"OK","ERRO") -> OK
A18: =IF(D18>0,"F","") ->  | B18: TRANSPORTES | D18: =Orçamento!V604 -> 0 | E18: =Orçamento!X604 -> 0 | F18: =ROUND(F20*$D$18,2) -> 0 | J18: =ROUND(J20*$D$18,2) -> 0 | N18: =ROUND(N20*$D$18,2) -> 0 | R18: =ROUND(R20*$D$18,2) -> 0 | V18: =SUM(F18:U18) -> 0 | W18: =IF(V18=D18,"OK","ERRO") -> OK
A19: =IF(A18="F",A18,"") -> 
A20: =IF(A19="F",A19,"") ->  | F20: 0.25 | J20: =F20 -> 0.25 | N20: =J20 -> 0.25 | R20: =1-SUM(F20:Q20) -> 0.25 | V20: =IFERROR(E18/100,"") -> 0 | W20: =IF(SUM(F20:U20)=100%,"OK","ERRO") -> OK
A21: =IF(D21>0,"F","") ->  | B21: SERVIÇO EM TERRA | D21: =Orçamento!V605 -> 0 | E21: =Orçamento!X605 -> 0 | F21: =ROUND(F23*$D$21,2) -> 0 | J21: =ROUND(J23*$D$21,2) -> 0 | N21: =ROUND(N23*$D$21,2) -> 0 | R21: =ROUND(R23*$D$21,2) -> 0 | V21: =SUM(F21:U21) -> 0 | W21: =IF(V21=D21,"OK","ERRO") -> OK
A22: =IF(A21="F",A21,"") -> 
A23: =IF(A22="F",A22,"") ->  | F23: 0.31 | J23: 0.3 | N23: =1-SUM(F23:M23) -> 0.39 | R23: 0 | V23: =IFERROR(E21/100,"") -> 0 | W23: =IF(SUM(F23:U23)=100%,"OK","ERRO") -> OK
A24: =IF(D24>0,"F","") ->  | B24: FUNDAÇÕES E SONDAGENS | D24: =Orçamento!V606 -> 0 | E24: =Orçamento!X606 -> 0 | F24: =ROUND(F26*$D$24,2) -> 0 | J24: =ROUND(J26*$D$24,2) -> 0 | N24: =ROUND(N26*$D$24,2) -> 0 | R24: =ROUND(R26*$D$24,2) -> 0 | V24: =SUM(F24:U24) -> 0 | W24: =IF(V24=D24,"OK","ERRO") -> OK
A25: =IF(A24="F",A24,"") -> 
A26: =IF(A25="F",A25,"") ->  | F26: 0.35 | J26: =F26 -> 0.35 | N26: =1-SUM(F26:M26) -> 0.3 | V26: =IFERROR(E24/100,"") -> 0 | W26: =IF(SUM(F26:U26)=100%,"OK","ERRO") -> OK
A27: =IF(D27>0,"F","") ->  | B27: ESTRUTURA | D27: =Orçamento!V607 -> 0 | E27: =Orçamento!X607 -> 0 | F27: =ROUND(F29*$D$27,2) -> 0 | J27: =ROUND(J29*$D$27,2) -> 0 | N27: =ROUND(N29*$D$27,2) -> 0 | R27: =ROUND(R29*$D$27,2) -> 0 | V27: =SUM(F27:U27) -> 0 | W27: =IF(V27=D27,"OK","ERRO") -> OK
A28: =IF(A27="F",A27,"") -> 
A29: =IF(A28="F",A28,"") ->  | F29: 0.36 | J29: 0.35 | N29: 0.1 | R29: =1-SUM(F29:Q29) -> 0.19 | V29: =IFERROR(E27/100,"") -> 0 | W29: =IF(SUM(F29:U29)=100%,"OK","ERRO") -> OK
A30: =IF(D30>0,"F","") ->  | B30: INST.ELET/TELEFÔNICA/CABEAMENTO ESTRUTURADO | D30: =Orçamento!V608 -> 0 | E30: =Orçamento!X608 -> 0 | F30: =ROUND(F32*$D$30,2) -> 0 | J30: =ROUND(J32*$D$30,2) -> 0 | N30: =ROUND(N32*$D$30,2) -> 0 | R30: =ROUND(R32*$D$30,2) -> 0 | V30: =SUM(F30:U30) -> 0 | W30: =IF(V30=D30,"OK","ERRO") -> OK
A31: =IF(A30="F",A30,"") -> 
A32: =IF(A31="F",A31,"") ->  | F32: 0.2 | J32: 0.35 | N32: 0.3 | R32: =1-SUM(F32:Q32) -> 0.15 | V32: =IFERROR(E30/100,"") -> 0 | W32: =IF(SUM(F32:U32)=100%,"OK","ERRO") -> OK
A33: =IF(D33>0,"F","") ->  | B33: INSTALAÇÕES HIDROSSANITÁRIAS | D33: =Orçamento!V609 -> 0 | E33: =Orçamento!X609 -> 0 | F33: =ROUND(F35*$D$33,2) -> 0 | J33: =ROUND(J35*$D$33,2) -> 0 | N33: =ROUND(N35*$D$33,2) -> 0 | R33: =ROUND(R35*$D$33,2) -> 0 | V33: =SUM(F33:U33) -> 0 | W33: =IF(V33=D33,"OK","ERRO") -> OK
A34: =IF(A33="F",A33,"") -> 
A35: =IF(A34="F",A34,"") ->  | F35: 0.23 | J35: =F35 -> 0.23 | N35: =J35 -> 0.23 | R35: =1-SUM(F35:Q35) -> 0.31 | V35: =IFERROR(E33/100,"") -> 0 | W35: =IF(SUM(F35:U35)=100%,"OK","ERRO") -> OK
A36: =IF(D36>0,"F","") ->  | B36: INSTALAÇÕES ESPECIAIS | D36: =Orçamento!V610 -> 0 | E36: =Orçamento!X610 -> 0 | F36: =ROUND(F38*$D$36,2) -> 0 | J36: =ROUND(J38*$D$36,2) -> 0 | N36: =ROUND(N38*$D$36,2) -> 0 | R36: =ROUND(R38*$D$36,2) -> 0 | V36: =SUM(F36:U36) -> 0 | W36: =IF(V36=D36,"OK","ERRO") -> OK
A37: =IF(A36="F",A36,"") -> 
A38: =IF(A37="F",A37,"") ->  | F38: 0 | J38: 1 | N38: 0 | R38: 0 | V38: =IFERROR(E36/100,"") -> 0 | W38: =IF(SUM(F38:U38)=100%,"OK","ERRO") -> OK
A39: =IF(D39>0,"F","") ->  | B39: ALVENARIA E DIVISÓRIAS | D39: =Orçamento!V611 -> 0 | E39: =Orçamento!X611 -> 0 | F39: =ROUND(F41*$D$39,2) -> 0 | J39: =ROUND(J41*$D$39,2) -> 0 | N39: =ROUND(N41*$D$39,2) -> 0 | R39: =ROUND(R41*$D$39,2) -> 0 | V39: =SUM(F39:U39) -> 0 | W39: =IF(V39=D39,"OK","ERRO") -> OK
A40: =IF(A39="F",A39,"") -> 
A41: =IF(A40="F",A40,"") ->  | F41: 0.21 | J41: =F41 -> 0.21 | N41: 0.24 | R41: =1-SUM(F41:Q41) -> 0.34 | V41: =IFERROR(E39/100,"") -> 0 | W41: =IF(SUM(F41:U41)=100%,"OK","ERRO") -> OK
A42: =IF(D42>0,"F","") ->  | B42: ALVENARIA AUTO-PORTANTE | D42: =Orçamento!V612 -> 0 | E42: =Orçamento!X612 -> 0 | F42: 0 | J42: 0 | N42: 0 | R42: 0 | V42: =SUM(F42:M42) -> 0
A43: =IF(A42="F",A42,"") -> 
A44: =IF(A43="F",A43,"") ->  | F44: 1 | J44: =1-F44 -> 0 | N44: 1 | R44: 1 | V44: =IFERROR(E42/100,"") -> 0
A45: =IF(D45>0,"F","") ->  | B45: IMPERMEABILIZAÇÃO | D45: =Orçamento!V613 -> 0 | E45: =Orçamento!X613 -> 0 | F45: =ROUND(F47*$D$45,2) -> 0 | J45: =ROUND(J47*$D$45,2) -> 0 | N45: =ROUND(N47*$D$45,2) -> 0 | R45: =ROUND(R47*$D$45,2) -> 0 | V45: =SUM(F45:U45) -> 0 | W45: =IF(V45=D45,"OK","ERRO") -> OK
A46: =IF(A45="F",A45,"") -> 
A47: =IF(A46="F",A46,"") ->  | F47: 0.25 | J47: =F47 -> 0.25 | N47: =1-SUM(F47:M47) -> 0.5 | R47: 0 | V47: =IFERROR(E45/100,"") -> 0 | W47: =IF(SUM(F47:U47)=100%,"OK","ERRO") -> OK
A48: =IF(D48>0,"F","") ->  | B48: ISOLAMENTO TÉRMICO E ACÚSTICO | D48: =Orçamento!V614 -> 0 | E48: =Orçamento!X614 -> 0 | F48: =ROUND(F50*$D$48,2) -> 0 | J48: =ROUND(J50*$D$48,2) -> 0 | N48: =ROUND(N50*$D$48,2) -> 0 | R48: =ROUND(R50*$D$48,2) -> 0 | V48: =SUM(F48:M48) -> 0
A49: =IF(A48="F",A48,"") -> 
A50: =IF(A49="F",A49,"") ->  | F50: 0.5 | J50: =1-F50 -> 0.5 | N50: 0.35 | R50: 0.35 | V50: =IFERROR(E48/100,"") -> 0
A51: =IF(D51>0,"F","") ->  | B51: ESTRUTURA DE MADEIRA | D51: =Orçamento!V615 -> 0 | E51: =Orçamento!X615 -> 0 | F51: =ROUND(F53*$D$51,2) -> 0 | J51: =ROUND(J53*$D$51,2) -> 0 | N51: =ROUND(N53*$D$51,2) -> 0 | R51: =ROUND(R53*$D$51,2) -> 0 | V51: =SUM(F51:U51) -> 0
A52: =IF(A51="F",A51,"") -> 
A53: =IF(A52="F",A52,"") ->  | F53: 0.24 | J53: =F53 -> 0.24 | N53: =1-SUM(F53:M53) -> 0.52 | R53: 0 | V53: =IFERROR(E51/100,"") -> 0
A54: =IF(D54>0,"F","") ->  | B54: ESTRUTURA METÁLICA | D54: =Orçamento!V616 -> 0 | E54: =Orçamento!X616 -> 0 | F54: =ROUND(F56*$D$54,2) -> 0 | J54: =ROUND(J56*$D$54,2) -> 0 | N54: =ROUND(N56*$D$54,2) -> 0 | R54: =ROUND(R56*$D$54,2) -> 0 | V54: =SUM(F54:U54) -> 0 | W54: =IF(V54=D54,"OK","ERRO") -> OK
A55: =IF(A54="F",A54,"") -> 
A56: =IF(A55="F",A55,"") ->  | F56: 0.36 | J56: =F56 -> 0.36 | N56: =1-SUM(F56:M56) -> 0.28 | R56: 0 | V56: =IFERROR(E54/100,"") -> 0 | W56: =IF(SUM(F56:U56)=100%,"OK","ERRO") -> OK
A57: =IF(D57>0,"F","") ->  | B57: COBERTURAS | D57: =Orçamento!V617 -> 0 | E57: =Orçamento!X617 -> 0 | F57: =ROUND(F59*$D$57,2) -> 0 | J57: =ROUND(J59*$D$57,2) -> 0 | N57: =ROUND(N59*$D$57,2) -> 0 | R57: =ROUND(R59*$D$57,2) -> 0 | V57: =SUM(F57:U57) -> 0 | W57: =IF(V57=D57,"OK","ERRO") -> OK
A58: =IF(A57="F",A57,"") -> 
A59: =IF(A58="F",A58,"") ->  | F59: 0 | J59: 0.49 | N59: =1-J59 -> 0.51 | R59: 0 | V59: =IFERROR(E57/100,"") -> 0 | W59: =IF(SUM(F59:U59)=100%,"OK","ERRO") -> OK
A60: =IF(D60>0,"F","") ->  | B60: ESQUADRIAS DE MADEIRA | D60: =Orçamento!V618 -> 0 | E60: =Orçamento!X618 -> 0 | F60: =ROUND(F62*$D$60,2) -> 0 | J60: =ROUND(J62*$D$60,2) -> 0 | N60: =ROUND(N62*$D$60,2) -> 0 | R60: =ROUND(R62*$D$60,2) -> 0 | V60: =SUM(F60:M60) -> 0
A61: =IF(A60="F",A60,"") -> 
A62: =IF(A61="F",A61,"") ->  | F62: 0.54 | J62: =1-F62 -> 0.46 | N62: 0.32 | R62: 0.32 | V62: =IFERROR(E60/100,"") -> 0
A63: =IF(D63>0,"F","") ->  | B63: ESQUADRIAS METÁLICAS | D63: =Orçamento!V619 -> 0 | E63: =Orçamento!X619 -> 0 | F63: =ROUND(F65*$D$63,2) -> 0 | J63: =ROUND(J65*$D$63,2) -> 0 | N63: =ROUND(N65*$D$63,2) -> 0 | R63: =ROUND(R65*$D$63,2) -> 0 | V63: =SUM(F63:U63) -> 0 | W63: =IF(V63=D63,"OK","ERRO") -> OK
A64: =IF(A63="F",A63,"") -> 
A65: =IF(A64="F",A64,"") ->  | F65: 0 | J65: 0.3381 | N65: 0.24 | R65: =1-SUM(F65:Q65) -> 0.4219 | V65: =IFERROR(E63/100,"") -> 0 | W65: =IF(SUM(F65:U65)=100%,"OK","ERRO") -> OK
A66: =IF(D66>0,"F","") ->  | B66: VIDROS | D66: =Orçamento!V620 -> 0 | E66: =Orçamento!X620 -> 0 | F66: =ROUND(F68*$D$66,2) -> 0 | J66: =ROUND(J68*$D$66,2) -> 0 | N66: =ROUND(N68*$D$66,2) -> 0 | R66: =ROUND(R68*$D$66,2) -> 0 | V66: =SUM(F66:U66) -> 0 | W66: =IF(V66=D66,"OK","ERRO") -> OK
A67: =IF(A66="F",A66,"") -> 
A68: =IF(A67="F",A67,"") ->  | F68: 0 | J68: 0 | N68: 0 | R68: 1 | V68: =IFERROR(E66/100,"") -> 0 | W68: =IF(SUM(F68:U68)=100%,"OK","ERRO") -> OK
A69: =IF(D69>0,"F","") ->  | B69: REVESTIMENTO DE PAREDE | D69: =Orçamento!V621 -> 0 | E69: =Orçamento!X621 -> 0 | F69: =ROUND(F71*$D$69,2) -> 0 | J69: =ROUND(J71*$D$69,2) -> 0 | N69: =ROUND(N71*$D$69,2) -> 0 | R69: =ROUND(R71*$D$69,2) -> 0 | V69: =SUM(F69:U69) -> 0 | W69: =IF(V69=D69,"OK","ERRO") -> OK
A70: =IF(A69="F",A69,"") -> 
A71: =IF(A70="F",A70,"") ->  | F71: 0.15 | J71: 0.2 | N71: 0.3 | R71: =1-SUM(F71:Q71) -> 0.35 | V71: =IFERROR(E69/100,"") -> 0 | W71: =IF(SUM(F71:U71)=100%,"OK","ERRO") -> OK
A72: =IF(D72>0,"F","") ->  | B72: FORROS | D72: =Orçamento!V622 -> 0 | E72: =Orçamento!X622 -> 0 | F72: =ROUND(F74*$D$72,2) -> 0 | J72: =ROUND(J74*$D$72,2) -> 0 | N72: =ROUND(N74*$D$72,2) -> 0 | R72: =ROUND(R74*$D$72,2) -> 0 | V72: =SUM(F72:U72) -> 0
A73: =IF(A72="F",A72,"") -> 
A74: =IF(A73="F",A73,"") ->  | F74: 0.15 | J74: 0.3 | N74: 0.25 | R74: =1-SUM(F74:Q74) -> 0.3 | V74: =IFERROR(E72/100,"") -> 0
A75: =IF(D75>0,"F","") ->  | B75: REVESTIMENTO DE PISO | D75: =Orçamento!V623 -> 0 | E75: =Orçamento!X623 -> 0 | F75: =ROUND(F77*$D$75,2) -> 0 | J75: =ROUND(J77*$D$75,2) -> 0 | N75: =ROUND(N77*$D$75,2) -> 0 | R75: =ROUND(R77*$D$75,2) -> 0 | V75: =SUM(F75:U75) -> 0 | W75: =IF(V75=D75,"OK","ERRO") -> OK
A76: =IF(A75="F",A75,"") -> 
A77: =IF(A76="F",A76,"") ->  | F77: 0.2323 | J77: 0.25 | N77: 0.15 | R77: =1-SUM(F77:Q77) -> 0.3677 | V77: =IFERROR(E75/100,"") -> 0 | W77: =IF(SUM(F77:U77)=100%,"OK","ERRO") -> OK
A78: =IF(D78>0,"F","") ->  | B78: FERRAGENS | D78: =Orçamento!V624 -> 0 | E78: =Orçamento!X624 -> 0 | F78: =ROUND(F80*$D$78,2) -> 0 | J78: =ROUND(J80*$D$78,2) -> 0 | N78: =ROUND(N80*$D$78,2) -> 0 | R78: =ROUND(R80*$D$78,2) -> 0 | V78: =SUM(F78:U78) -> 0 | W78: =IF(V78=D78,"OK","ERRO") -> OK
A79: =IF(A78="F",A78,"") -> 
A80: =IF(A79="F",A79,"") ->  | F80: 0 | J80: 0 | N80: 0 | R80: 1 | V80: =IFERROR(E78/100,"") -> 0 | W80: =IF(SUM(F80:U80)=100%,"OK","ERRO") -> OK
A81: =IF(D81>0,"F","") ->  | B81: MARCENARIA | D81: =Orçamento!V625 -> 0 | E81: =Orçamento!X625 -> 0 | F81: =ROUND(F83*$D$81,2) -> 0 | J81: =ROUND(J83*$D$81,2) -> 0 | N81: =ROUND(N83*$D$81,2) -> 0 | R81: =ROUND(R83*$D$81,2) -> 0 | V81: =SUM(F81:M81) -> 0
A82: =IF(A81="F",A81,"") -> 
A83: =IF(A82="F",A82,"") ->  | F83: 0.4 | J83: =1-F83 -> 0.6 | N83: =1-J83 -> 0.4 | R83: =1-N83 -> 0.6 | V83: =IFERROR(E81/100,"") -> 0
A84: =IF(D84>0,"F","") ->  | B84: ADMINISTRAÇÃO - MENSALISTAS | D84: =Orçamento!V626 -> 0 | E84: =Orçamento!X626 -> 0 | F84: =ROUND(F86*$D$84,2) -> 0 | J84: =ROUND(J86*$D$84,2) -> 0 | N84: =ROUND(N86*$D$84,2) -> 0 | R84: =ROUND(R86*$D$84,2) -> 0 | V84: =SUM(F84:U84) -> 0 | W84: =IF(V84=D84,"OK","ERRO") -> OK
A85: =IF(A84="F",A84,"") -> 
A86: =IF(A85="F",A85,"") ->  | F86: 0.49 | J86: =1-F86 -> 0.51 | V86: =IFERROR(E84/100,"") -> 0 | W86: =IF(SUM(F86:U86)=100%,"OK","ERRO") -> OK
A87: =IF(D87>0,"F","") ->  | B87: PINTURA | D87: =Orçamento!V627 -> 0 | E87: =Orçamento!X627 -> 0 | F87: =ROUND(F89*$D$87,2) -> 0 | J87: =ROUND(J89*$D$87,2) -> 0 | N87: =ROUND(N89*$D$87,2) -> 0 | R87: =ROUND(R89*$D$87,2) -> 0 | V87: =SUM(F87:U87) -> 0 | W87: =IF(V87=D87,"OK","ERRO") -> OK
A88: =IF(A87="F",A87,"") -> 
A89: =IF(A88="F",A88,"") ->  | F89: 0 | J89: 0 | N89: 0.4 | R89: 0.6 | V89: =IFERROR(E87/100,"") -> 0 | W89: =IF(SUM(F89:U89)=100%,"OK","ERRO") -> OK
A90: =IF(D90>0,"F","") ->  | B90: DIVERSOS | D90: =Orçamento!V628 -> 0 | E90: =Orçamento!X628 -> 0 | F90: =ROUND(F92*$D$90,2) -> 0 | J90: =ROUND(J92*$D$90,2) -> 0 | N90: =ROUND(N92*$D$90,2) -> 0 | R90: =ROUND(R92*$D$90,2) -> 0 | V90: =SUM(F90:U90) -> 0 | W90: =IF(V90=D90,"OK","ERRO") -> OK
A91: =IF(A90="F",A90,"") -> 
A92: =IF(A91="F",A91,"") ->  | F92: 0.2418 | J92: =F92 -> 0.2418 | N92: =J92 -> 0.2418 | R92: =1-SUM(F91:Q92) -> 0.2746 | V92: =IFERROR(E90/100,"") -> 0 | W92: =IF(SUM(F92:U92)=100%,"OK","ERRO") -> OK
A93: F | B93: CUSTO DO ORÇAMENTO | D93: =SUM(D15:D92) -> 0 | E93: =SUM(E15:E92) -> 0 | F93: =F15+F18+F21+F24+F27+F30+F33+F36+F39+F42+F45+F48+F51+F54+F57+F60+F63+F66+F69+F72+F75+F78+F81+F84+F87+F90 -> 0 | J93: =J15+J18+J21+J24+J27+J30+J33+J36+J39+J42+J45+J48+J51+J54+J57+J60+J63+J66+J69+J72+J75+J78+J81+J84+J87+J90 -> 0 | N93: =N15+N18+N21+N24+N27+N30+N33+N36+N39+N42+N45+N48+N51+N54+N57+N60+N63+N66+N69+N72+N75+N78+N81+N84+N87+N90 -> 0 | R93: =R15+R18+R21+R24+R27+R30+R33+R36+R39+R42+R45+R48+R51+R54+R57+R60+R63+R66+R69+R72+R75+R78+R81+R84+R87+R90 -> 0 | V93: =V15+V18+V21+V24+V27+V30+V33+V36+V39+V42+V45+V48+V51+V54+V57+V60+V63+V66+V69+V72+V75+V78+V81+V84+V87+V90 -> 0
A94: F | B94: PERCENTUAIS: | F94: =IFERROR(F93/$D$93,"") ->  | J94: =IFERROR(J93/$D$93,"") ->  | N94: =IFERROR(N93/$D$93,"") ->  | R94: =IFERROR(R93/$D$93,"") ->  | V94: =SUM(F94:U94) -> 0
A95: F | B95: TOTAIS ACUMULADOS: | F95: =F93 -> 0 | J95: =J93+F95 -> 0 | N95: =N93+J95 -> 0 | R95: =R93+N95 -> 0
A96: F | B96: PERCENTUAIS ACUMULADOS: | F96: =F94 ->  | J96: =F96+J94 ->  | N96: =J96+N94 ->  | R96: =N96+R94 -> 
A97: F
A98: F | B98: OBSERVAÇÕES:
A99: F | B99: Os pagamentos somente poderão ser efetuados mediante medição e atesto pelos técnicos da Secretaria da Educação.

Sheet Composição BDI
A3: UNIDADE ESCOLAR
A4: =Orçamento!$O$4 -> COLÉGIO ESTADUAL CARLOS DRUMOND DE ANDRADE
A6: OBRA
A7: =Orçamento!$O$7 -> REFORMA
A9: ENDEREÇO
A10: =Orçamento!$R$10 -> AV. SEBASTIÃO VARGAS FILHO QD 08 S/N VALE DO PEDREGA, VALE DO PEDREGAL, CEP:72860-785
A12: CIDADE
A13: =Orçamento!$V$7 -> NOVO GAMA
A15: CRE
A16: =Orçamento!$O$10 -> NOVO GAMA
A18: DETALHAMENTO DA COMPOSIÇÃO DE BDI
A19: COMPOSIÇÃO BDI PARA OBRAS CIVIS | F19: BDI CONSTRUÇÃO E REFORMA
A20: DESCRIÇÃO | B20: COEF. | C20: TAXA % (a.m) | D20: % no preço de venda | F20: Situação | G20: 1º Quartil | H20: Médio | I20: 3º Quartil
A21: 1) COFINS | B21: 1 | C21: 0.03 | D21: =C21 -> 0.03 | F21: =IF(OR(C21<G21,C21>I21),"FORA DO INTERVALO","OK") -> OK | G21: 0.03 | H21: 0.03 | I21: 0.03
A22: 2) PIS | B22: 1 | C22: 0.0065 | D22: =C22 -> 0.0065 | F22: =IF(OR(C22<G22,C22>I22),"FORA DO INTERVALO","OK") -> OK | G22: 0.0065 | H22: 0.0065 | I22: 0.0065
A23: 3) ISSQN | B23: 1 | C23: 0.03 | D23: =C23*B23 -> 0.03 | F23: OK | G23: 0.02 | H23: 0.035 | I23: 0.05
A24: 4) CPRB | B24: 1 | C24: 0 | D24: =C24 -> 0 | F24: FORA DO INTERVALO | G24: 0.045 | H24: 0.045 | I24: 0.045
A25: 5) Administração Central | B25: 1 | C25: 0.04 | D25: 0.04 | F25: OK | G25: 0.03 | H25: 0.04 | I25: 0.055
A26: 6) Despesas Financeiras | B26: 1 | C26: 0.0056 | D26: 0.0056 | F26: FORA DO INTERVALO | G26: 0.0059 | H26: 0.0123 | I26: 0.0139
A27: 7) Seguros + Garantias | B27: 1 | C27: 0.0012 | D27: 0.0012 | F27: FORA DO INTERVALO | G27: 0.008 | H27: 0.008 | I27: 0.01
A28: 8) Risco | B28: 1 | C28: 0.0097 | D28: 0.0097 | F28: OK | G28: 0.0097 | H28: 0.0127 | I28: 0.0127
A29: 9) Lucro | B29: 1 | C29: 0.072 | D29: 0.072 | F29: OK | G29: 0.0616 | H29: 0.074 | I29: 0.0896
A30: BDI - FINAL | D30: =(((1+D25+D27+D28)*(1+D26)*(1+D29))/(1-(D21+D22+D23+D24))-1) -> 0.213576393 | F30: =IF(OR(D30<G30,D30>I30),"FORA DO INTERVALO","OK") -> OK | G30: 0.2034 | H30: 0.2212 | I30: 0.25
A32: Notas:
A33: (1) e (2) Alíquota definida por lei.
A34: (3) Alíquota e base de cálculo definidas pela legislação municipal.
A35: (4) Alíquota definida pelas leis 12.546/11, 12844/13 e 13.161/15 (CPRB – contribuição previdenciária sobre a receita bruta).
A36: (5) Valores definidos a partir dos limites no Acórdão nº 2.622/2013 - TCU – Plenário. Valores entre o 1º e 3º quartis.
A37: (6) Valor calculado pela expressão matemática do acórdão 2.369/2011 – TCU – Plenário e disponibilizado pela AGETOP em dezembro de 2018. (Foi utilizado para o cálculo a média da Taxa SELIC no período de 11/2017 a 10/2018)
A39: (7) Valores definidos pela AGETOP a partir dos limites no Acórdão nº 2.622/2013 - TCU – Plenário. Valores médios. Observação da AGETOP: (Seguros contra erros de execução, incêndio e explosão, danos da natureza (vendaval, destelhamento, alagamento, inundação, desmoronamento, geadas etc.), emprego de material defeituoso ou inadequado, roubo e/ou furto qualificado, quebra de equipamentos, desmoronamento de estrutura, nas modalidades de Obras Civis em Construção (OCC); Instalação e Montagem (IM); e Obras Civis em Construção e Instalação e Montagem (OCC/IM). Bem como coberturas adicionais para ampliação dessas coberturas básicas, como: cobertura de responsabilidade civil geral, cobertura de responsabilidade civil cruzada, cobertura de despesas extraordinárias, cobertura de tumultos, cobertura de desentulho do local, cobertura de riscos do fabricante, dentre outras, incluindo o seguro de vida em grupo regido pela convenção coletiva dos trabalhadores na indústria da construção civil). A partir de 24/02/2015 por intermédio da Portaria 449/2015 a Presidência da AGETOP, na pessoa do Senhor Jayme Eduardo Rincon, determinou a exclusão dos valores referentes aos Seguros de Risco de Engenharia e Responsabilidade Civil do Profissional na composição do cálculo do B.D.I..
A40: (8) Valores definidos a partir dos limites no Acórdão nº 2.622/2013 - TCU – Plenário. Valores entre 1º e 3° quartis.
A41: (9) Valores definidos a partir dos limites definidos no Acórdão nº 2.622/2013 - TCU – Plenário. Valores adotados e praticados no mercado ( “ ex ante ” ) ou aqueles entre os 1º e 3º quartis.
A43: (*) A fórmula para estipulação da taxa de BDI estimado adotado é a mesma que foi aplicada para a obtenção das tabelas contidas no Acórdão n. 2.622/2013 – TCUPlenário
A45: Obs.: Para obras com valores superiores a R$ 20.000.000,00 sugere-se recalcular o BDI, dimensionando as taxas de administração central e lucro para patamares inferiores ao estipulado acima.

Sheet Relatório CENTRAL
B3: UNIDADE ESCOLAR | D3: CIDADE
B4: =Orçamento!$O$4 -> COLÉGIO ESTADUAL CARLOS DRUMOND DE ANDRADE | D4: =Orçamento!$V$7 -> NOVO GAMA
B6: OBRA | D6: CRE
B7: =Orçamento!$O$7 -> REFORMA | D7: =Orçamento!$O$10 -> NOVO GAMA
B9: ENDEREÇO | D9: DATA
A10: FILTRO | B10: =Orçamento!$R$10 -> AV. SEBASTIÃO VARGAS FILHO QD 08 S/N VALE DO PEDREGA, VALE DO PEDREGAL, CEP:72860-785 | D10: =Orçamento!$S$7 -> 2020-09-02
B12: RELATÓRIO CENTRAL
A13: ↓ | B13: CÓDIGO | C13: ETAPA | D13: PREÇO (R$) C/ BDI | E13: PARTIC ( % )
A14: =IF(D14>0,"F","") ->  | B14: =Orçamento!O603 -> a. | C14: =Orçamento!P603 -> SERVIÇOS PRELIMINARES | D14: =Orçamento!V603 -> 0 | E14: =Orçamento!X603 -> 0
A15: =IF(D15>0,"F","") ->  | B15: =Orçamento!O604 -> b. | C15: =Orçamento!P604 -> TRANSPORTES | D15: =Orçamento!V604 -> 0 | E15: =Orçamento!X604 -> 0
B16: =Orçamento!O605 -> c. | C16: =Orçamento!P605 -> SERVIÇO EM TERRA | D16: =Orçamento!V605 -> 0 | E16: =Orçamento!X605 -> 0
B17: =Orçamento!O606 -> d. | C17: =Orçamento!P606 -> FUNDAÇÕES E SONDAGENS | D17: =Orçamento!V606 -> 0 | E17: =Orçamento!X606 -> 0
B18: =Orçamento!O607 -> e. | C18: =Orçamento!P607 -> ESTRUTURA | D18: =Orçamento!V607 -> 0 | E18: =Orçamento!X607 -> 0
B19: =Orçamento!O608 -> f. | C19: =Orçamento!P608 -> INSTALAÇÕES ELÉTRICAS | D19: =Orçamento!V608 -> 0 | E19: =Orçamento!X608 -> 0
B20: =Orçamento!O609 -> g. | C20: =Orçamento!P609 -> INSTALAÇÕES HIDROSSANITÁRIAS | D20: =Orçamento!V609 -> 0 | E20: =Orçamento!X609 -> 0
B21: =Orçamento!O610 -> h | C21: =Orçamento!P610 -> INSTALAÇÕES ESPECIAIS | D21: =Orçamento!V610 -> 0 | E21: =Orçamento!X610 -> 0
B22: =Orçamento!O611 -> i. | C22: =Orçamento!P611 -> ALVENARIAS E DIVISÓRIAS | D22: =Orçamento!V611 -> 0 | E22: =Orçamento!X611 -> 0
B23: =Orçamento!O612 -> j. | C23: =Orçamento!P612 -> ALVENARIA AUTO-PORTANTE | D23: =Orçamento!V612 -> 0 | E23: =Orçamento!X612 -> 0
B24: =Orçamento!O613 -> k. | C24: =Orçamento!P613 -> IMPERMEABILIZAÇÃO | D24: =Orçamento!V613 -> 0 | E24: =Orçamento!X613 -> 0
B25: =Orçamento!O614 -> l. | C25: =Orçamento!P614 -> ISOLAMENTO TÉRMICO E ACÚSTICO | D25: =Orçamento!V614 -> 0 | E25: =Orçamento!X614 -> 0
B26: =Orçamento!O615 -> m. | C26: =Orçamento!P615 -> ESTRUTURA DE MADEIRA | D26: =Orçamento!V615 -> 0 | E26: =Orçamento!X615 -> 0
B27: =Orçamento!O616 -> n. | C27: =Orçamento!P616 -> ESTRUTURAS METÁLICAS | D27: =Orçamento!V616 -> 0 | E27: =Orçamento!X616 -> 0
B28: =Orçamento!O617 -> o. | C28: =Orçamento!P617 -> COBERTURAS | D28: =Orçamento!V617 -> 0 | E28: =Orçamento!X617 -> 0
B29: =Orçamento!O618 -> p. | C29: =Orçamento!P618 -> ESQUADRIAS DE MADEIRA | D29: =Orçamento!V618 -> 0 | E29: =Orçamento!X618 -> 0
B30: =Orçamento!O619 -> q. | C30: =Orçamento!P619 -> ESQUADRIAS METÁLICAS | D30: =Orçamento!V619 -> 0 | E30: =Orçamento!X619 -> 0
B31: =Orçamento!O620 -> r. | C31: =Orçamento!P620 -> VIDROS | D31: =Orçamento!V620 -> 0 | E31: =Orçamento!X620 -> 0
B32: =Orçamento!O621 -> s. | C32: =Orçamento!P621 -> REVESTIMENTO DE PAREDE | D32: =Orçamento!V621 -> 0 | E32: =Orçamento!X621 -> 0
B33: =Orçamento!O622 -> t. | C33: =Orçamento!P622 -> FORROS | D33: =Orçamento!V622 -> 0 | E33: =Orçamento!X622 -> 0
B34: =Orçamento!O623 -> u. | C34: =Orçamento!P623 -> REVESTIMENTO DE PISO | D34: =Orçamento!V623 -> 0 | E34: =Orçamento!X623 -> 0
B35: =Orçamento!O624 -> v. | C35: =Orçamento!P624 -> FERRAGENS | D35: =Orçamento!V624 -> 0 | E35: =Orçamento!X624 -> 0
B36: =Orçamento!O625 -> w. | C36: =Orçamento!P625 -> MARCENARIA | D36: =Orçamento!V625 -> 0 | E36: =Orçamento!X625 -> 0
B37: =Orçamento!O626 -> x. | C37: =Orçamento!P626 -> ADMINISTRAÇÃO | D37: =Orçamento!V626 -> 0 | E37: =Orçamento!X626 -> 0
B38: =Orçamento!O627 -> y. | C38: =Orçamento!P627 -> PINTURA | D38: =Orçamento!V627 -> 0 | E38: =Orçamento!X627 -> 0
B39: =Orçamento!O628 -> z. | C39: =Orçamento!P628 -> DIVERSOS | D39: =Orçamento!V628 -> 0 | E39: =Orçamento!X628 -> 0
A40: F | B40: TOTAL GERAL DO ORÇAMENTO (R$) C/BDI | D40: =SUM(D14:D39) -> 0 | E40: =SUM(E14:E39) -> 0

Sheet Parc Maior Relev
B3: UNIDADE ESCOLAR | E3: CÓDIGO INEP
B4: =Orçamento!$O$4 -> COLÉGIO ESTADUAL CARLOS DRUMOND DE ANDRADE | E4: =Orçamento!$V$4 -> 52092127
B6: OBRA | E6: CIDADE
B7: =Orçamento!$O$7 -> REFORMA | E7: =Orçamento!$V$7 -> NOVO GAMA
B9: CRE | E9: ÁREA TOTAL CONSTRUÍDA (M²)
B10: =Orçamento!$O$10 -> NOVO GAMA | E10: =Orçamento!$S$13 -> 2668.12
A11: FILTRO
B12: PARCELA DE MAIOR RELEVÂNCIA
B13: CÓDIGO | C13: SERVIÇO | D13: DESCRIÇÃO | E13: UNID | F13: QUANT | G13: PARC. MAIOR RELEV (50%)
B14: =Somatório!B21 -> e. | C14: ESTRUTURA | D14: CONCRETO | E14: M3 | F14: =0.18+0.31+0.91+0.31+0.31+0.43+0.18+3.91+14.06+6.28 -> 26.88 | G14: =F14*0.5 -> 13.44
B15: =Somatório!B25 -> i. | C15: ALVENARIAS E DIVISÓRIAS | D15: ALVENARIA DE TIJOLO | E15: M2 | F15: =19.55+5.88+24.97+9.91+44.92 -> 105.23 | G15: =F15*0.5 -> 52.615
A16: F
A17: F | B17: (*) Para os fins do inciso I dp § 1º do Art. 30 da Lei Federal 8.666/93, são consideradas parcelas de maior relevância técnica as execuções apresentadas
A18: F

Sheet Composições
A4: UNIDADE ESCOLAR | H4: CÓDIGO INEP
A5: =Orçamento!$O$4 -> COLÉGIO ESTADUAL CARLOS DRUMOND DE ANDRADE | H5: =Orçamento!$V$4 -> 52092127
A7: OBRA | H7: CIDADE
A8: =Orçamento!$O$7 -> REFORMA | H8: =Orçamento!$V$7 -> NOVO GAMA
A10: CRE | D10: ENDEREÇO | H10: REFERÊNCIA AGETOP
A11: =Orçamento!$O$10 -> NOVO GAMA | D11: =Orçamento!$R$10 -> AV. SEBASTIÃO VARGAS FILHO QD 08 S/N VALE DO PEDREGA, VALE DO PEDREGAL, CEP:72860-785 | H11: =Orçamento!$V$10 -> ABR/19 | I11: =Orçamento!$W$10 -> ONERADA
A13: DATA | D13: ÁREA TOTAL CONSTRUÍDA (M²) | H13: REFERÊNCIA SINAPI
A14: =Orçamento!$S$7 -> 2020-09-02 | D14: =Orçamento!$S$13 -> 2668.12 | H14: =Orçamento!$V$13 -> SET/19 | I14: =Orçamento!$W$13 -> ONERADA
A16: COMPOSIÇÕES DE CUSTOS UNITÁRIOS - SEE-GO
A17: 46 | B17: FONTE | C17: CÓDIGO | D17: DESCRIÇÃO | E17: UNIDADE | F17: COEFIC. | G17: CUSTO UNITÁRIO | I17: CUSTO TOTAL (A) + (B) + (C) + (D) + (E)
G18: DESONERADO | H18: NÃO DESONER. | I18: DESONERADO | J18: NÃO DESONER.
B19: COMPOSIÇÃO | C19: COMP 046_SEE | D19: CAPUZ PARA PROTEÇÃO DOS PARA RAIOS | E19: UN | I19: 16.53 | J19: 16.65
B20: AGETOP_I | C20: 8 | D20: AJUDANTE | E20: h | F20: 0.0333 | G20: 8.2 | H20: 9.51 | I20: 0.27 | J20: 0.32
B21: AGETOP_I | C21: 12 | D21: ELETRICISTA | E21: h | F21: 0.0333 | G21: 13.4 | H21: 15.53 | I21: 0.45 | J21: 0.52
G22: 0 | H22: 0 | I22: 0 | J22: 0
B23: MÃO DE OBRA (B) - TOTAL | I23: 0.72 | J23: 0.84
B24: COTAÇÃO | C24: COT 010_SEE | D24: CAPUZ PARA PROTEÇÃO DOS PARA RAIOS | E24: UN | F24: 1 | G24: 15.81 | H24: 15.81 | I24: 15.81 | J24: 15.81
G25: 0 | H25: 0 | I25: 0 | J25: 0
G26: 0 | H26: 0 | I26: 0 | J26: 0
B27: MATERIAL (C) - TOTAL | I27: 15.81 | J27: 15.81
A29: 47 | B29: FONTE | C29: CÓDIGO | D29: DESCRIÇÃO | E29: UNIDADE | F29: COEFIC. | G29: CUSTO UNITÁRIO | I29: CUSTO TOTAL (A) + (B) + (C) + (D) + (E)
G30: DESONERADO | H30: NÃO DESONER. | I30: DESONERADO | J30: NÃO DESONER.
B31: COMPOSIÇÃO | C31: COMP 047_SEE | D31: CAPUZ DE PROTEÇÃO PARA BUCHA DE TRANSFORMADOR | E31: UN | I31: 16.53 | J31: 16.65
B32: AGETOP_I | C32: 8 | D32: AJUDANTE | E32: h | F32: 0.0333 | G32: 8.2 | H32: 9.51 | I32: 0.27 | J32: 0.32
B33: AGETOP_I | C33: 12 | D33: ELETRICISTA | E33: h | F33: 0.0333 | G33: 13.4 | H33: 15.53 | I33: 0.45 | J33: 0.52
G34: 0 | H34: 0 | I34: 0 | J34: 0
B35: MÃO DE OBRA (B) - TOTAL | I35: 0.72 | J35: 0.84
B36: COTAÇÃO | C36: COT 011_SEE | D36: CAPUZ DE PROTEÇÃO PARA BUCHA DE TRANSFORMADOR | E36: UN | F36: 1 | G36: 15.81 | H36: 15.81 | I36: 15.81 | J36: 15.81
G37: 0 | H37: 0 | I37: 0 | J37: 0
G38: 0 | H38: 0 | I38: 0 | J38: 0
B39: MATERIAL (C) - TOTAL | I39: 15.81 | J39: 15.81
A41: 48 | B41: FONTE | C41: CÓDIGO | D41: DESCRIÇÃO | E41: UNIDADE | F41: COEFIC. | G41: CUSTO UNITÁRIO | I41: CUSTO TOTAL (A) + (B) + (C) + (D) + (E)
G42: DESONERADO | H42: NÃO DESONER. | I42: DESONERADO | J42: NÃO DESONER.
B43: COMPOSIÇÃO | C43: COMP 048_SEE | D43: HASTE ROSQUEADA "TIRANTE" 3/8" | E43: M | I43: 14.02 | J43: 15.39
B44: AGETOP_I | C44: 8 | D44: AJUDANTE | E44: h | F44: 0.4 | G44: 8.2 | H44: 9.51 | I44: 3.28 | J44: 3.8
B45: AGETOP_I | C45: 12 | D45: ELETRICISTA | E45: h | F45: 0.4 | G45: 13.4 | H45: 15.53 | I45: 5.36 | J45: 6.21
G46: 0 | H46: 0 | I46: 0 | J46: 0
B47: MÃO DE OBRA (B) - TOTAL | I47: 8.64 | J47: 10.01
B48: COTAÇÃO | C48: COT 012_SEE | D48: HASTE ROSQUEADA "TIRANTE" 3/8" | E48: M | F48: 1 | G48: 5.383333333 | H48: 5.383333333 | I48: 5.38 | J48: 5.38
G49: 0 | H49: 0 | I49: 0 | J49: 0
G50: 0 | H50: 0 | I50: 0 | J50: 0
B51: MATERIAL (C) - TOTAL | I51: 5.38 | J51: 5.38
A53: 49 | B53: FONTE | C53: CÓDIGO | D53: DESCRIÇÃO | E53: UNIDADE | F53: COEFIC. | G53: CUSTO UNITÁRIO | I53: CUSTO TOTAL (A) + (B) + (C) + (D) + (E)
G54: DESONERADO | H54: NÃO DESONER. | I54: DESONERADO | J54: NÃO DESONER.
B55: COMPOSIÇÃO | C55: COMP 049_SEE | D55: PORCA SEXTAVADA 3/8" | E55: UN | I55: 0.2 | J55: 0.22
B56: AGETOP_I | C56: 8 | D56: AJUDANTE | E56: h | F56: 0.009 | G56: 8.2 | H56: 9.51 | I56: 0.07 | J56: 0.09
G57: 0 | H57: 0 | I57: 0 | J57: 0
G58: 0 | H58: 0 | I58: 0 | J58: 0
B59: MÃO DE OBRA (B) - TOTAL | I59: 0.07 | J59: 0.09
B60: COTAÇÃO | C60: COT 013_SEE | D60: PORCA SEXTAVADA 3/8" | E60: UN | F60: 1 | G60: 0.13 | H60: 0.13 | I60: 0.13 | J60: 0.13
G61: 0 | H61: 0 | I61: 0 | J61: 0
G62: 0 | H62: 0 | I62: 0 | J62: 0
B63: MATERIAL (C) - TOTAL | I63: 0.13 | J63: 0.13
A65: 40 | B65: FONTE | C65: CÓDIGO | D65: DESCRIÇÃO | E65: UNIDADE | F65: COEFIC. | G65: CUSTO UNITÁRIO | I65: CUSTO TOTAL (A) + (B) + (C) + (D) + (E)
G66: DESONERADO | H66: NÃO DESONER. | I66: DESONERADO | J66: NÃO DESONER.
B67: COMPOSIÇÃO | C67: COMP 040_SEE | D67: CONJUNTO MOTOR-BOMBA ELÉTRICA TRIFÁSICO 380/220 V PARA VZ= 24,33 M³/H, HM= 46,24 M POTÊNCIA= 7,5 CV | E67: UN | I67: 3965.47 | J67: 3992.99
B68: AGETOP_I | C68: 8 | D68: AJUDANTE | E68: h | F68: 8 | G68: 8.2 | H68: 9.51 | I68: 65.6 | J68: 76.08
B69: AGETOP_I | C69: 11 | D69: ENCANADOR | E69: h | F69: 8 | G69: 13.4 | H69: 15.53 | I69: 107.2 | J69: 124.24
G70: 0 | H70: 0 | I70: 0 | J70: 0
B71: MÃO DE OBRA (B) - TOTAL | I71: 172.8 | J71: 200.32
B72: COTAÇÃO | C72: COT 008_SEE | D72: CONJUNTO MOTOR-BOMBA ELÉTRICA TRIFÁSICO 380/220 V PARA VZ= 24,33 M³/H, HM= 46,24 M POTÊNCIA= 7,5 CV | E72: UN | F72: 1 | G72: 3792.666667 | H72: 3792.666667 | I72: 3792.67 | J72: 3792.67
G73: 0 | H73: 0 | I73: 0 | J73: 0
G74: 0 | H74: 0 | I74: 0 | J74: 0
B75: MATERIAL (C) - TOTAL | I75: 3792.67 | J75: 3792.67
A77: 17 | B77: FONTE | C77: CÓDIGO | D77: DESCRIÇÃO | E77: UNIDADE | F77: COEFIC. | G77: CUSTO UNITÁRIO | I77: CUSTO TOTAL (A) + (B) + (C) + (D) + (E)
G78: DESONERADO | H78: NÃO DESONER. | I78: DESONERADO | J78: NÃO DESONER.
B79: COMPOSIÇÃO | C79: COMP 017_SEE | D79: REDUCAO GIRATÓRIA TIPO STORZ LATAO P/ INST. PREDIAL COMBATE A INCENDIO ENGATE RAPIDO 2.1/2" X 1.1/2" | E79: UN | G79: - | H79: - | I79: 99.14 | J79: 99.69
B80: AGETOP_I | C80: 8 | D80: AJUDANTE | E80: h | F80: 0.16 | G80: 8.2 | H80: 9.51 | I80: 1.31 | J80: 1.52
B81: AGETOP_I | C81: 11 | D81: ENCANADOR | E81: h | F81: 0.16 | G81: 13.4 | H81: 15.53 | I81: 2.14 | J81: 2.48
G82: 0 | H82: 0 | I82: 0 | J82: 0
B83: MÃO DE OBRA (B) - TOTAL | I83: 3.45 | J83: 4
B84: SINAPI_I | C84: 20972 | D84: REDUCAO FIXA TIPO STORZ, ENGATE RAPIDO 2.1/2" X 1.1/2", EM LATAO, PARA INSTALACAO PREDIAL COMBATE A INCENDIO PREDIAL | E84: UN | F84: 1 | G84: 95.69 | H84: 95.69 | I84: 95.69 | J84: 95.69
G85: 0 | H85: 0 | I85: 0 | J85: 0
G86: 0 | H86: 0 | I86: 0 | J86: 0
B87: MATERIAL (C) - TOTAL | I87: 95.69 | J87: 95.69
A89: 18 | B89: FONTE | C89: CÓDIGO | D89: DESCRIÇÃO | E89: UNIDADE | F89: COEFIC. | G89: CUSTO UNITÁRIO | I89: CUSTO TOTAL (A) + (B) + (C) + (D) + (E)
G90: DESONERADO | H90: NÃO DESONER. | I90: DESONERADO | J90: NÃO DESONER.
B91: COMPOSIÇÃO | C91: COMP 018_SEE | D91: CHAVE DUPLA P/ CONEXÕES TIPO STORZ EM LATÃO ENGATE RÁPIDO 1 1/2" X 2 1/2" | E91: UN | G91: - | H91: - | I91: 14.76 | J91: 15.08
B92: AGETOP_I | C92: 11 | D92: ENCANADOR | E92: h | F92: 0.15 | G92: 13.4 | H92: 15.53 | I92: 2.01 | J92: 2.33
G93: 0 | H93: 0 | I93: 0 | J93: 0
G94: 0 | H94: 0 | I94: 0 | J94: 0
B95: MÃO DE OBRA (B) - TOTAL | I95: 2.01 | J95: 2.33
B96: SINAPI_I | C96: 20971 | D96: CHAVE DUPLA PARA CONEXOES TIPO STORZ, ENGATE RAPIDO 1 1/2" X 2 1/2", EM LATAO, PARA INSTALACAO PREDIAL COMBATE A INCENDIO | E96: UN | F96: 1 | G96: 12.75 | H96: 12.75 | I96: 12.75 | J96: 12.75
G97: 0 | H97: 0 | I97: 0 | J97: 0
G98: 0 | H98: 0 | I98: 0 | J98: 0
B99: MATERIAL (C) - TOTAL | I99: 12.75 | J99: 12.75
A101: 87 | B101: FONTE | C101: CÓDIGO | D101: DESCRIÇÃO | E101: UNIDADE | F101: COEFIC. | G101: CUSTO UNITÁRIO | I101: CUSTO TOTAL (A) + (B) + (C) + (D) + (E)
G102: DESONERADO | H102: NÃO DESONER. | I102: DESONERADO | J102: NÃO DESONER.
B103: COMPOSIÇÃO | C103: COMP 087_SEE | D103: REGISTRO DE GAVETA COM HASTE ASCENDENTE DE BRONZE 2 1/2" | E103: UN | I103: 257.3 | J103: 261.26
B104: AGETOP_I | C104: 8 | D104: AJUDANTE | E104: h | F104: 1.15 | G104: 8.2 | H104: 9.51 | I104: 9.43 | J104: 10.94
B105: AGETOP_I | C105: 11 | D105: ENCANADOR | E105: h | F105: 1.15 | G105: 13.4 | H105: 15.53 | I105: 15.41 | J105: 17.86
G106: 0 | H106: 0 | I106: 0 | J106: 0
B107: MÃO DE OBRA (B) - TOTAL | I107: 24.84 | J107: 28.8
B108: AGETOP_I | C108: H689 | D108: FITA VEDAROSCA 12 MM | E108: m | F108: 2.82 | G108: 0.28 | H108: 0.28 | I108: 0.79 | J108: 0.79
B109: COTAÇÃO | C109: COT 017_SEE | D109: REGISTRO DE GAVETA COM HASTE ASCENDENTE DE BRONZE 2 1/2" | E109: UN | F109: 1 | G109: 231.6666667 | H109: 231.6666667 | I109: 231.67 | J109: 231.67
G110: 0 | H110: 0 | I110: 0 | J110: 0
B111: MATERIAL (C) - TOTAL | I111: 232.46 | J111: 232.46
A113: 30 | B113: FONTE | C113: CÓDIGO | D113: DESCRIÇÃO | E113: UNIDADE | F113: COEFIC. | G113: CUSTO UNITÁRIO | I113: CUSTO TOTAL (A) + (B) + (C) + (D) + (E)
G114: DESONERADO | H114: NÃO DESONER. | I114: DESONERADO | J114: NÃO DESONER.
B115: COMPOSIÇÃO | C115: COMP 030_SEE | D115: COTOVELO DE FERRO GALV. 90° X 2 1/2" | E115: UN | I115: 69.16 | J115: 72.33
B116: AGETOP_I | C116: 8 | D116: AJUDANTE | E116: h | F116: 0.92 | G116: 8.2 | H116: 9.51 | I116: 7.54 | J116: 8.75
B117: AGETOP_I | C117: 11 | D117: ENCANADOR | E117: h | F117: 0.92 | G117: 13.4 | H117: 15.53 | I117: 12.33 | J117: 14.29
B118: MÃO DE OBRA (B) - TOTAL | I118: 19.87 | J118: 23.04
B119: SINAPI_I | C119: 3470 | D119: COTOVELO 90 GRAUS DE FERRO GALVANIZADO, COM ROSCA BSP, DE 2 1/2" | E119: UN | F119: 1 | G119: 48.73 | H119: 48.73 | I119: 48.73 | J119: 48.73
B120: AGETOP_I | C120: H689 | D120: FITA VEDAROSCA 12 MM | E120: m | F120: 2 | G120: 0.28 | H120: 0.28 | I120: 0.56 | J120: 0.56
B121: MATERIAL (C) - TOTAL | I121: 49.29 | J121: 49.29
A123: 77 | B123: FONTE | C123: CÓDIGO | D123: DESCRIÇÃO | E123: UNIDADE | F123: COEFIC. | G123: CUSTO UNITÁRIO | I123: CUSTO TOTAL (A) + (B) + (C) + (D) + (E)
G124: DESONERADO | H124: NÃO DESONER. | I124: DESONERADO | J124: NÃO DESONER.
B125: COMPOSIÇÃO | C125: COMP 077_SEE | D125: UNIAO FERRO GALV C/ASSENTO CONICO BRONZE 2 1/2" | E125: UN | I125: 148.3 | J125: 149.67
B126: AGETOP_I | C126: 8 | D126: AJUDANTE | E126: h | F126: 0.4 | G126: 8.2 | H126: 9.51 | I126: 3.28 | J126: 3.8
B127: AGETOP_I | C127: 11 | D127: ENCANADOR | E127: h | F127: 0.4 | G127: 13.4 | H127: 15.53 | I127: 5.36 | J127: 6.21
B128: MÃO DE OBRA (B) - TOTAL | I128: 8.64 | J128: 10.01
B129: AGETOP_I | C129: H689 | D129: FITA VEDAROSCA 12 MM | E129: m | F129: 2.4 | G129: 0.28 | H129: 0.28 | I129: 0.67 | J129: 0.67
B130: SINAPI_I | C130: 12427 | D130: UNIAO COM ASSENTO CONICO DE BRONZE, DIAMETRO 2 1/2" | E130: UN | F130: 1 | G130: 138.99 | H130: 138.99 | I130: 138.99 | J130: 138.99
B131: MATERIAL (C) - TOTAL | I131: 139.66 | J131: 139.66
A133: 347 | B133: FONTE | C133: CÓDIGO | D133: DESCRIÇÃO | E133: UNIDADE | F133: COEFIC. | G133: CUSTO UNITÁRIO | I133: CUSTO TOTAL (A) + (B) + (C) + (D) + (E)
G134: DESONERADO | H134: NÃO DESONER. | I134: DESONERADO | J134: NÃO DESONER.
B135: COMPOSIÇÃO | C135: COMP 347_SEE | D135: ADAPTADOR PVC SOLDAVEL, COM FLANGES LIVRES, 75 MM X 2 1/2", PARA CAIXA D' AGUA | E135: UN | I135: 118.75 | J135: 119.22
B136: AGETOP_I | C136: 11 | D136: ENCANADOR | E136: h | F136: 0.14 | G136: 13.4 | H136: 15.53 | I136: 1.88 | J136: 2.17
B137: AGETOP_I | C137: 8 | D137: AJUDANTE | E137: h | F137: 0.14 | G137: 8.2 | H137: 9.51 | I137: 1.15 | J137: 1.33
G138: 0 | H138: 0 | I138: 0 | J138: 0
B139: MÃO DE OBRA (B) - TOTAL | I139: 3.03 | J139: 3.5
B140: SINAPI_I | C140: 83 | D140: ADAPTADOR PVC SOLDAVEL, COM FLANGES LIVRES, 75 MM X 2 1/2", PARA CAIXA D' AGUA | E140: UN | F140: 1 | G140: 115.19 | H140: 115.19 | I140: 115.19 | J140: 115.19
B141: AGETOP_I | C141: H689 | D141: FITA VEDAROSCA 12 MM | E141: m | F141: 1.88 | G141: 0.28 | H141: 0.28 | I141: 0.53 | J141: 0.53
G142: 0 | H142: 0 | I142: 0 | J142: 0
B143: MATERIAL (C) - TOTAL | I143: 115.72 | J143: 115.72
A145: 22 | B145: FONTE | C145: CÓDIGO | D145: DESCRIÇÃO | E145: UNIDADE | F145: COEFIC. | G145: CUSTO UNITÁRIO | I145: CUSTO TOTAL (A) + (B) + (C) + (D) + (E)
G146: DESONERADO | H146: NÃO DESONER. | I146: DESONERADO | J146: NÃO DESONER.
B147: COMPOSIÇÃO | C147: COMP 022_SEE | D147: TAMPÃO FOFO 40X50CM C/INSCRIÇÃO | E147: UN | G147: - | H147: - | I147: 199.83 | J147: 200.15
B148: AGETOP_I | C148: 11 | D148: ENCANADOR | E148: h | F148: 0.15 | G148: 13.4 | H148: 15.53 | I148: 2.01 | J148: 2.33
G149: 0 | H149: 0 | I149: 0 | J149: 0
G150: 0 | H150: 0 | I150: 0 | J150: 0
B151: MÃO DE OBRA (B) - TOTAL | I151: 2.01 | J151: 2.33
B152: SINAPI_I | C152: 11293 | D152: TAMPAO FOFO SIMPLES COM BASE, CLASSE A15 CARGA MAX 1,5 T, 400 X 500 MM, COM INSCRICAO INCENDIO | E152: UN | F152: 1 | G152: 197.82 | H152: 197.82 | I152: 197.82 | J152: 197.82
G153: 0 | H153: 0 | I153: 0 | J153: 0
G154: 0 | H154: 0 | I154: 0 | J154: 0
B155: MATERIAL (C) - TOTAL | I155: 197.82 | J155: 197.82
A157: 546 | B157: FONTE | C157: CÓDIGO | D157: DESCRIÇÃO | E157: UNID | F157: COEFIC. | G157: CUSTO UNITÁRIO | I157: CUSTO TOTAL (A) + (B) + (C) + (D) + (E)
G158: DESONERADO | H158: NÃO DESONER. | I158: DESONERADO | J158: NÃO DESONER.
B159: COMPOSIÇÃO | C159: COMP 546_SEE | D159: BUJÃO DE REBORDO 2.1/2" | E159: UN | F159: - | G159: - | H159: - | I159: 16.51 | J159: 16.76
B160: AGETOP_I | C160: 8 | D160: AJUDANTE | E160: h | F160: 0.07 | G160: 8.2 | H160: 9.51 | I160: 0.57 | J160: 0.67
B161: AGETOP_I | C161: 11 | D161: ENCANADOR | E161: h | F161: 0.07 | G161: 13.4 | H161: 15.53 | I161: 0.94 | J161: 1.09
G162: 0 | H162: 0 | I162: 0 | J162: 0
B163: MÃO DE OBRA (B) - TOTAL | I163: 1.51 | J163: 1.76
B164: COTAÇÃO | C164: COT 286_SEE | D164: BUJÃO DE REBORDO 2.1/2" | E164: UN | F164: 1 | G164: 15 | H164: 15 | I164: 15 | J164: 15
G165: 0 | H165: 0 | I165: 0 | J165: 0
G166: 0 | H166: 0 | I166: 0 | J166: 0
B167: MATERIAL (C) - TOTAL | I167: 15 | J167: 15
A169: 186 | B169: FONTE | C169: CÓDIGO | D169: DESCRIÇÃO | E169: UNIDADE | F169: COEFIC. | G169: CUSTO UNITÁRIO | I169: CUSTO TOTAL (A) + (B) + (C) + (D) + (E)
G170: DESONERADO | H170: NÃO DESONER. | I170: DESONERADO | J170: NÃO DESONER.
B171: COMPOSIÇÃO | C171: COMP 186_SEE | D171: BOTOEIRA BOMBA DE INCÊNDIO C/ MARTELO CONVENCIONAL/ ANALÓGICA | E171: UN | I171: 85.1 | J171: 88.54
B172: AGETOP_I | C172: 8 | D172: AJUDANTE | E172: h | F172: 1 | G172: 8.2 | H172: 9.51 | I172: 8.2 | J172: 9.51
B173: AGETOP_I | C173: 12 | D173: ELETRICISTA | E173: h | F173: 1 | G173: 13.4 | H173: 15.53 | I173: 13.4 | J173: 15.53
G174: 0 | H174: 0 | I174: 0 | J174: 0
B175: MÃO DE OBRA (B) - TOTAL | I175: 21.6 | J175: 25.04
B176: COTAÇÃO | C176: COT 088_SEE | D176: BOTOEIRA BOMBA DE INCÊNDIO C/ MARTELO CONVENCIONAL/ ANALÓGICA | E176: UN | F176: 1 | G176: 63.5 | H176: 63.5 | I176: 63.5 | J176: 63.5
G177: 0 | H177: 0 | I177: 0 | J177: 0
G178: 0 | H178: 0 | I178: 0 | J178: 0
B179: MATERIAL (C) - TOTAL | I179: 63.5 | J179: 63.5
A181: 188 | B181: FONTE | C181: CÓDIGO | D181: DESCRIÇÃO | E181: UNIDADE | F181: COEFIC. | G181: CUSTO UNITÁRIO | I181: CUSTO TOTAL (A) + (B) + (C) + (D) + (E)
G182: DESONERADO | H182: NÃO DESONER. | I182: DESONERADO | J182: NÃO DESONER.
B183: COMPOSIÇÃO | C183: COMP 188_SEE | D183: ACIONADOR MANUAL DE ALARME | E183: UN | I183: 100.61 | J183: 103.36
B184: AGETOP_I | C184: 8 | D184: AJUDANTE | E184: h | F184: 0.8 | G184: 8.2 | H184: 9.51 | I184: 6.56 | J184: 7.61
B185: AGETOP_I | C185: 12 | D185: ELETRICISTA | E185: h | F185: 0.8 | G185: 13.4 | H185: 15.53 | I185: 10.72 | J185: 12.42
G186: 0 | H186: 0 | I186: 0 | J186: 0
B187: MÃO DE OBRA (B) - TOTAL | I187: 17.28 | J187: 20.03
B188: COTAÇÃO | C188: COT 090_SEE | D188: ACIONADOR MANUAL DE ALARME | E188: UN | F188: 1 | G188: 83.33333333 | H188: 83.33333333 | I188: 83.33 | J188: 83.33
G189: 0 | H189: 0 | I189: 0 | J189: 0
G190: 0 | H190: 0 | I190: 0 | J190: 0
B191: MATERIAL (C) - TOTAL | I191: 83.33 | J191: 83.33
A193: 190 | B193: FONTE | C193: CÓDIGO | D193: DESCRIÇÃO | E193: UNIDADE | F193: COEFIC. | G193: CUSTO UNITÁRIO | I193: CUSTO TOTAL (A) + (B) + (C) + (D) + (E)
G194: DESONERADO | H194: NÃO DESONER. | I194: DESONERADO | J194: NÃO DESONER.
B195: COMPOSIÇÃO | C195: COMP 190_SEE | D195: CENTRAL DE DETECÇÃO E ALARME DE 40 SETORES COM BATERIA | E195: UN | I195: 1136.13 | J195: 1163.65
B196: AGETOP_I | C196: 8 | D196: AJUDANTE | E196: h | F196: 8 | G196: 8.2 | H196: 9.51 | I196: 65.6 | J196: 76.08
B197: AGETOP_I | C197: 12 | D197: ELETRICISTA | E197: h | F197: 8 | G197: 13.4 | H197: 15.53 | I197: 107.2 | J197: 124.24
G198: 0 | H198: 0 | I198: 0 | J198: 0
B199: MÃO DE OBRA (B) - TOTAL | I199: 172.8 | J199: 200.32
B200: COTAÇÃO | C200: COT 092_SEE | D200: CENTRAL DE DETECÇÃO E ALARME DE 40 SETORES COM BATERIA (PREÇO MÉDIO) | E200: UN | F200: 1 | G200: 963.3333333 | H200: 963.3333333 | I200: 963.33 | J200: 963.33
G201: 0 | H201: 0 | I201: 0 | J201: 0
G202: 0 | H202: 0 | I202: 0 | J202: 0
B203: MATERIAL (C) - TOTAL | I203: 963.33 | J203: 963.33
A205: 24 | B205: FONTE | C205: CÓDIGO | D205: DESCRIÇÃO | E205: UNIDADE | F205: COEFIC. | G205: CUSTO UNITÁRIO | I205: CUSTO TOTAL (A) + (B) + (C) + (D) + (E)
G206: DESONERADO | H206: NÃO DESONER. | I206: DESONERADO | J206: NÃO DESONER.
B207: COMPOSIÇÃO | C207: COMP 024_SEE | D207: SINALIZADOR FOTOLUMINESCENTE PARA EXTINTOR | E207: UN | G207: - | H207: - | I207: 25.27 | J207: 25.39
B208: AGETOP_I | C208: 5 | D208: SERVENTE | E208: h | F208: 0.09 | G208: 8.2 | H208: 9.51 | I208: 0.74 | J208: 0.86
G209: 0 | H209: 0 | I209: 0 | J209: 0
G210: 0 | H210: 0 | I210: 0 | J210: 0
B211: MÃO DE OBRA (B) - TOTAL | I211: 0.74 | J211: 0.86
B212: AGETOP_I | C212: 3070 | D212: BUCHA DE NYLON S-6 | E212: un | F212: 2 | G212: 0.04 | H212: 0.04 | I212: 0.08 | J212: 0.08
B213: AGETOP_I | C213: 3393 | D213: PARAFUSO P/BUCHA S-6 | E213: un | F213: 2 | G213: 0.08 | H213: 0.08 | I213: 0.16 | J213: 0.16
B214: SINAPI_I | C214: 37556 | D214: PLACA DE SINALIZACAO DE SEGURANCA CONTRA INCENDIO, FOTOLUMINESCENTE, QUADRADA, *20 X 20* CM, EM PVC *2* MM ANTI-CHAMAS (SIMBOLOS, CORES E PICTOGRAMAS CONFORME NBR 13434) | E214: UN | F214: 1 | G214: 24.29 | H214: 24.29 | I214: 24.29 | J214: 24.29
B215: MATERIAL (C) - TOTAL | I215: 24.53 | J215: 24.53
A217: 25 | B217: FONTE | C217: CÓDIGO | D217: DESCRIÇÃO | E217: UNIDADE | F217: COEFIC. | G217: CUSTO UNITÁRIO | I217: CUSTO TOTAL (A) + (B) + (C) + (D) + (E)
G218: DESONERADO | H218: NÃO DESONER. | I218: DESONERADO | J218: NÃO DESONER.
B219: COMPOSIÇÃO | C219: COMP 025_SEE | D219: SINALIZADOR FOTOLUMINESCENTE DE EMERGÊNCIA | E219: UN | G219: - | H219: - | I219: 25.27 | J219: 25.39
B220: AGETOP_I | C220: 5 | D220: SERVENTE | E220: h | F220: 0.09 | G220: 8.2 | H220: 9.51 | I220: 0.74 | J220: 0.86
B221: MÃO DE OBRA (B) - TOTAL | I221: 0.74 | J221: 0.86
B222: AGETOP_I | C222: 3070 | D222: BUCHA DE NYLON S-6 | E222: un | F222: 2 | G222: 0.04 | H222: 0.04 | I222: 0.08 | J222: 0.08
B223: AGETOP_I | C223: 3393 | D223: PARAFUSO P/BUCHA S-6 | E223: un | F223: 2 | G223: 0.08 | H223: 0.08 | I223: 0.16 | J223: 0.16
B224: SINAPI_I | C224: 37556 | D224: PLACA DE SINALIZACAO DE SEGURANCA CONTRA INCENDIO, FOTOLUMINESCENTE, QUADRADA, *20 X 20* CM, EM PVC *2* MM ANTI-CHAMAS (SIMBOLOS, CORES E PICTOGRAMAS CONFORME NBR 13434) | E224: UN | F224: 1 | G224: 24.29 | H224: 24.29 | I224: 24.29 | J224: 24.29
... 268 more rows
